FIN.Transaction Date,Authority Department incurring the expenditure,Beneficiary,Net Amount,VAT,Gross Amount,Summary of Purpose of Expenditure,Merchant Category
29/03/2019,Sheltered Housing,WICKES BUILDING,85.83,17.17,103.00,Storage box for tools at Norman Court,"BUILDING MATERIALS, LUMBER STORES"
30/03/2019,Thaxted Day Centre,ALDI 76 776,30.62,.00,30.62,Food provisions for meals at Thaxted Day Centre,"GROCERY STORES, SUPERMARKETS"
30/03/2019,Thaxted Day Centre,TESCO STORE 3130,115.41,.00,115.41,Food provisions for meals at Thaxted Day Centre,"GROCERY STORES, SUPERMARKETS"
01/04/2019,Office Services,NUKEY,15.80,3.16,18.96,Keys for cupboard,DIRECT MARKETING-CATALOG MERCHANTS
01/04/2019,Saffron Walden Day Centre,ALDI 76 776,62.26,.85,63.11,Food cost for centre,"GROCERY STORES, SUPERMARKETS"
01/04/2019,Saffron Walden Day Centre,WAITROSE 135,3.00,.00,3.00,food cost for centre,"GROCERY STORES, SUPERMARKETS"
02/04/2019,Museum S/W,GREATER ANGLIA T/O,18.30,.00,18.30,"Train Ticket: London travel card (with railcard discount) for train and underground to British Museum, London, for collection of Roman coins acquired through the Treasure Act and inspection of another potential Treasure acquisition (reliquary pendant)",PASSENGER RAILWAYS
02/04/2019,Procurement,EB  SEMINAR PROCUREMEN,22.70,4.54,27.24,"Procurement Update Seminar - to cover legislative and policy developments, including guidance on dealing the procurement aspects of outsourcing and case law",BUSINESS SERVICES-NOT ELSEWHERE CLASSIFIED
02/04/2019,Saffron Walden Offices,MEDLOCK ELECTRICAL,12.00,2.40,14.40,trunking,ELECTRICAL PARTS AND EQUIPMENT
02/04/2019,Sheltered Housing,TIMPSON LTD,8.00,2.00,10.00,Keys for new garden door at Sheltered Site,"HAT CLEANING SHOPS, SHOE REPAIR SHOPS, SHOE SHINE"
02/04/2019,Sheltered Housing,AMZNMKTPLACE AMAZON.CO,63.32,12.67,75.99,"Mattress ordered for guest room vic mead, Never delivered, lost in transit. Refund given on card.",MISCELLANEOUS AND SPECIALTY RETAIL STORES
02/04/2019,Sheltered Housing,SP   CROSSWORDSITE,11.02,2.20,13.22,crossword and wordsearch for WOW magazine,"GAME, TOY, AND HOBBY SHOPS"
03/04/2019,Housing Repair,AMZNMKTPLACE AMAZON.CO,31.50,.00,31.50,3 x Floor welding hand feed brass roller solid with wooden handle,MISCELLANEOUS AND SPECIALTY RETAIL STORES
03/04/2019,Museum S/W,Amazon.co.uk MZ3J48AO4,7.49,1.50,8.99,"1000 natural wooden lollipop sticks, for craft activities",DIRECT MARKETING-OTHER DIRECT MARKETERS/NOT ELSEW.
03/04/2019,Museum S/W,AMZNMktplace,11.66,2.33,13.99,"Bro Fly Mosquito Screen Net Mesh, for natural history activities and tadpole display",MISCELLANEOUS AND SPECIALTY RETAIL STORES
03/04/2019,Museum S/W,WORLDWIDE BUTTERFLIES,21.45,4.29,25.74,Peacock butterfly larvae for natural history activities,PET SHOPS - PET FOODS AND SUPPLIES
03/04/2019,Museum S/W,MUSEUMS ASCTN,125.00,.00,125.00,"Seminar place - Amazing Spaces: New Thinking on Exhibition Design 30 April, London.",ART DEALERS AND GALLERIES
03/04/2019,Saffron Walden Offices,RIDGEONS,26.91,5.39,32.30,"wall plugs,sealent,glue,and screws","BUILDING MATERIALS, LUMBER STORES"
03/04/2019,Sheltered Housing,B&M RETAIL,14.15,2.83,16.98,Air Fresheners and Batteries for sheltered Sites,DISCOUNT STORES
03/04/2019,Vehicle Maintenance,RIDGEONS,58.38,11.68,70.06,"1 x 9.6mtr 3x2 stud timber @ 1.20pmtr
1 pack woodscrews @ 4.08per
1 x wood filler @ 4.20per
1 x roller kit for paint @ 4.05
1 x 2.5ltr gloss paint @ 34.53
Materials for the soap box rally 26th May 2019","BUILDING MATERIALS, LUMBER STORES"
04/04/2019,Building Control,WWW.ELMHURSTENERGY.CO.,()150.00,()30.00,()180.00,Cancelled course booked for trainee and aprentice BC Officers,"SCHOOLS, BUSINESS AND SECRETARIAL"
04/04/2019,Museum S/W,AMZNMktplace,11.87,2.38,14.25,Air hardening clay 12.5 kg for activities,MISCELLANEOUS AND SPECIALTY RETAIL STORES
04/04/2019,Museum S/W,AMZNMktplace,5.82,1.17,6.99,"Amazon purchases for Learning & Outreach Officer, activities programme: pack of 200 Jumbo Assorted Colour Lollipop Sticks",MISCELLANEOUS AND SPECIALTY RETAIL STORES
04/04/2019,Museum S/W,SPRINGWELL NURSERY,12.47,2.50,14.97,3 x 10 litre bags of peat-free plant compost for Easter holiday activities (planting sunflower seeds in recycled newspaper pots),LAWN AND GARDEN SUPPLY STORES
04/04/2019,Museum S/W,AMZNMktplace,2.12,.43,2.55,"100 giant lollipop natural wood sticks, for craft activities",MISCELLANEOUS AND SPECIALTY RETAIL STORES
04/04/2019,Property Services,AMZNMKTPLACE AMAZON.CO,49.29,.00,49.29,3 x High Quality 6mm Brass Penny Roller,MISCELLANEOUS AND SPECIALTY RETAIL STORES
04/04/2019,Public Health,AMZNMKTPLACE AMAZON.CO,12.26,2.46,14.72,Supply of 2 x Art-line EKSC-4 Secure Marker Pens (Twin Pack) @ cost of 6.13 per pack + VAT,MISCELLANEOUS AND SPECIALTY RETAIL STORES
04/04/2019,Saffron Walden Offices,TESCO STORE 3130,12.00,.00,12.00,milk,"GROCERY STORES, SUPERMARKETS"
04/04/2019,Sheltered Housing,AMZNMktplace,22.19,4.44,26.63,LETTERBOX,MISCELLANEOUS AND SPECIALTY RETAIL STORES
05/04/2019,,EB  WHITE RIBBON CONFE,64.55,.00,64.55,,BUSINESS SERVICES-NOT ELSEWHERE CLASSIFIED
05/04/2019,Office Cleaning,QD STORES,5.98,.00,5.98,Brooms,DISCOUNT STORES
05/04/2019,Sheltered Housing,QD STORES,8.78,1.76,10.54,"Freezer bags for lifelines,Febreze fabric spray, sundries",DISCOUNT STORES
07/04/2019,Thaxted Day Centre,TESCO STORE 3130,112.65,.00,112.65,Food provisions for meals at Thaxted Day Centre,"GROCERY STORES, SUPERMARKETS"
07/04/2019,Thaxted Day Centre,ALDI 76 776,18.05,1.90,19.95,Food provisions for meals at Thaxted Day Centre,"GROCERY STORES, SUPERMARKETS"
08/04/2019,,WWW.NISBETS.COM,203.98,.00,203.98,,DIRECT MARKETING-CATALOG MERCHANTS
08/04/2019,Saffron Walden Day Centre,ALDI 76 776,61.25,1.21,62.46,Food supplies Day Centre,"GROCERY STORES, SUPERMARKETS"
08/04/2019,Thaxted Day Centre,TESCO STORE 2574,9.10,.00,9.10,Food provisions for meals at Thaxted Day Centre,"GROCERY STORES, SUPERMARKETS"
09/04/2019,Democratic Rep,TESCO STORE 3130,2.59,.00,2.59,Council meeting (refreshments),"GROCERY STORES, SUPERMARKETS"
09/04/2019,Public Health (Commercial Team),ETI LTD,12.00,2.40,14.40,"1 x Ice Bath Mug for temperature calibration @10.00 Shipping @2.00
Ref.EPJC",COMPUTER SOFTWARE STORES
09/04/2019,Saffron Walden Day Centre,WAITROSE 135,4.58,.92,5.50,Compostable bags for the Day Centre,"GROCERY STORES, SUPERMARKETS"
10/04/2019,Housing Repair,Amazon.co.uk MZ9NS7V94,33.54,6.71,40.25,,DIRECT MARKETING-OTHER DIRECT MARKETERS/NOT ELSEW.
12/04/2019,Museum S/W,QD STORES,3.32,.67,3.99,"LED light bulb for tadpole aquarium, Great Hall",DISCOUNT STORES
14/04/2019,Saffron Walden Day Centre,ALDI 76 776,46.98,.00,46.98,Food supplies for the Day Centre,"GROCERY STORES, SUPERMARKETS"
15/04/2019,Refuse & Recycling,DVLA VEHICLE TAX,722.50,.00,722.50,Annual Road Fund Licence,GOVERNMENT SERVICES-NOT ELSEWHERE CLASSIFIED
15/04/2019,Refuse & Recycling,DVLA VEHICLE TAX,233.50,.00,233.50,Annual Road Fund Licence,GOVERNMENT SERVICES-NOT ELSEWHERE CLASSIFIED
15/04/2019,Trade Waste,DVLA VEHICLE TAX,722.50,.00,722.50,Annual Road Fund Licence,GOVERNMENT SERVICES-NOT ELSEWHERE CLASSIFIED
16/04/2019,,DC WAREWASHING  ICEMAK,232.30,.00,232.30,,"COMMERCIAL EQUIPMENT, NOT ELSEWHERE CLASSIFIED"
16/04/2019,Animal Warden,THE STANWELL HEATHROW,360.00,.00,360.00,Cost of 5 nights accommodation at Stanwell Hotel (1 Place) 20th - 24th May at cost of 360.00 Ref: BK60244,"LODGING-HOTELS,MOTELS,RESORTS-NOT CLASSIFIED"
16/04/2019,Grounds Maintenance,JAY & ROB'S WINDSCREEN,90.00,18.00,108.00,replace broken front passenger window on Renault Clio due to strimmer damage whilst cutting grass in the area.,AUTOMOTIVE SERVICE SHOPS
16/04/2019,Legal Services,WWW.MONEYCLAIM.GOV,25.00,.00,25.00,Money Claim Online - New claim application,GOVERNMENT SERVICES-NOT ELSEWHERE CLASSIFIED
17/04/2019,Refuse & Recycling,RIDGEONS,36.71,7.34,44.05,"1 x bucket @ 2.99
1 x patio cleaner @ 2.70
2 x oil and drive cleanser @ 10.95 per
1 x scrubbing brush @ 3.36
1 x broom @ 3.36
1 x dustpan @ 4.46","BUILDING MATERIALS, LUMBER STORES"
18/04/2019,Animal Warden,WWW.MUTTSBUTTS.COM,248.00,49.60,297.60,"Supply of 20,000 JRB Standard degradable Vest type poop Scoop Bags @ cost of 248.00 + VAT ref: 19656",PET SHOPS - PET FOODS AND SUPPLIES
18/04/2019,Public Health,FERRET INFORMATIO,175.00,35.00,210.00,"1 place (TM) to attend Ferret Training Course/Seminar - DFG Means testing for Disabled Facilities Grants - Introduction - London 14th May 2019 @ cost of 175.00 + VAT 
Ref: 39987","COMPUTERS, COMPUTER PERIPHERAL EQUIPMENT, SOFTWARE"
18/04/2019,Sheltered Housing,CO-OP MOBILITY,22.94,3.79,26.73,Flashing Doorbell,DENTAL/LAB/MED/OPHTHALMIC HOSP EQUIP & SUPPLIES
22/04/2019,Thaxted Day Centre,TESCO STORE 3130,36.25,.00,36.25,Food provisions for meals at Thaxted Day Centre,"GROCERY STORES, SUPERMARKETS"
23/04/2019,,COMPLETE CARE SHOP,287.82,.00,287.82,,MISCELLANEOUS GENERAL MERCHANDISE
23/04/2019,,QD STORES,14.97,.00,14.97,,DISCOUNT STORES
23/04/2019,Border Inspection,VIKING UK,17.39,3.48,20.87,5L Milton Fluid for disinfecting BIP @ 14.49  Shipping @ 2.90 Ref DM,STATIONERY/OFFICE SUPPLIES/PRINTING & WRITING PAP.
23/04/2019,Highway Ranger,BANKS GARDEN MACHINERY,128.36,25.67,154.03,"works on Sthil HL95 Hedgecutter, ball bearings 45, filter 4.91, spark plug 6.11, gasket 0.75, fuel filter 2.95, replacement blades 66.66.",LAWN AND GARDEN SUPPLY STORES
23/04/2019,Museum S/W,LOCKSTOCK & BARREL,24.60,4.92,29.52,Padlock for Museum driveway gates,HARDWARE STORES
23/04/2019,Sheltered Housing,Amazon.co.uk MZ05H17A4,53.59,4.88,58.47,Dust Busters,DIRECT MARKETING-OTHER DIRECT MARKETERS/NOT ELSEW.
24/04/2019,Sheltered Housing,UTTLESFORD DISTRIC,57.00,.00,57.00,to pay for annual green bin collection at Reynolds Court,"ASSOCIATIONS-CIVIC, SOCIAL, AND FRATERNAL"
24/04/2019,Vehicle Maintenance,RIDGEONS,27.86,5.57,33.43,1 x 18mm 2440 x 1220 plywood board for soapbox materials,"BUILDING MATERIALS, LUMBER STORES"
25/04/2019,Museum S/W,MEDLOCK ELECTRICAL,28.00,5.60,33.60,GU10 LED spotlight bulbs for Museum galleries,ELECTRICAL PARTS AND EQUIPMENT
25/04/2019,Thaxted Day Centre,HP INC UK LIMITED,2.91,.58,3.49,Ink for Thaxted Day Centre,"COMPUTERS, COMPUTER PERIPHERAL EQUIPMENT, SOFTWARE"
26/04/2019,Grounds Maintenance,JAY & ROB'S WINDSCREEN,100.00,20.00,120.00,"Compensation, supply and fit front left car door window, Peugeot 208.
window broken by debris from strimming.",AUTOMOTIVE SERVICE SHOPS
26/04/2019,Legal Services,WWW.MONEYCLAIM.GOV,410.00,.00,410.00,Money Claim Online - Start of claim,GOVERNMENT SERVICES-NOT ELSEWHERE CLASSIFIED
26/04/2019,Planning Policy,RTPI,155.00,.00,155.00,RTPI Membership payment - Member no. 82544,"ORGANIZATIONS, CHARITABLE AND SOCIAL SERVICES"
26/04/2019,Saffron Walden Offices,RIDGEONS,119.88,23.97,143.85,"barrier tape, 15m of cable","BUILDING MATERIALS, LUMBER STORES"
27/04/2019,Saffron Walden Day Centre,TESCO STORE 3130,6.50,.00,6.50,Food provisions for Saffron Walden Day Centre meals,"GROCERY STORES, SUPERMARKETS"
28/04/2019,General Planning,AMZNMktplace,4.95,.00,4.95,GIM Mouse Pad Gel following a WSA,MISCELLANEOUS AND SPECIALTY RETAIL STORES
28/04/2019,Thaxted Day Centre,ALDI 76 776,44.18,.00,44.18,Food provisions for meals at Thaxted Day Centre,"GROCERY STORES, SUPERMARKETS"
28/04/2019,Thaxted Day Centre,TESCO STORE 3130,99.86,.00,99.86,Food provisions for meals at Thaxted Day Centre,"GROCERY STORES, SUPERMARKETS"
29/04/2019,Housing Services,TESCO STORE 2574,100.00,.00,100.00,TP refreshments,"GROCERY STORES, SUPERMARKETS"
29/04/2019,Public Health,OPTIMA LOW VISIONS SER,51.78,10.36,62.14,Supply of 1 x 95mm Acrylic Dome Magnifier @ cost of 57.53 + Vat Ref: 152511,DENTAL/LAB/MED/OPHTHALMIC HOSP EQUIP & SUPPLIES
29/04/2019,Saffron Walden Day Centre,ALDI 76 776,35.48,.00,35.48,Food Provisions for Saffron Walden Day Centre meals,"GROCERY STORES, SUPERMARKETS"
29/04/2019,Saffron Walden Offices,LOCKSTOCK & BARREL,20.97,.00,20.97,keys cut,HARDWARE STORES
30/04/2019,Office Services,QD STORES,11.98,.00,11.98,Pilers for cutting cables at elections,DISCOUNT STORES
30/04/2019,Sheltered Housing,PETS AT HOME LTD,5.00,1.00,6.00,seated ex sundries,PET SHOPS - PET FOODS AND SUPPLIES
30/04/2019,Sheltered Housing,HOBBYCRAFT,18.37,3.68,22.05,seated exercise sundries,"ARTIST SUPPLY STORES, CRAFT SHOPS"
30/04/2019,Thaxted Day Centre,TESCO STORE 3130,25.47,.12,25.59,Food provisions for meals at Thaxted Day Centre,"GROCERY STORES, SUPERMARKETS"
01/05/2019,Health & Safety,TRAVIS PERKINS,7.80,1.56,9.36,15mm stop valve and reducer for tap to feed trees in yard with water.,"BUILDING MATERIALS, LUMBER STORES"
01/05/2019,Housing Repair,DVLA VEHICLE TAX,262.50,.00,262.50,Annual Road Fund Licence,GOVERNMENT SERVICES-NOT ELSEWHERE CLASSIFIED
02/05/2019,Animal Warden,PET INDUSTRY FEDERATIO,990.00,.00,990.00,1 place (BT) to attend Inspector Qualification Training - 20th - 24th May 2019 @ cost of 990.00 Ref:6551,OTHER SERVICES (NOT ELSEWHERE CLASSIFIED)
02/05/2019,Office Services,TESCO STORE 3130,22.59,.00,22.59,Milk and water for election count,"GROCERY STORES, SUPERMARKETS"
02/05/2019,Office Services,HOMEBASE LTD 643,16.80,.00,16.80,Tape used for Elections,"BUILDING MATERIALS, LUMBER STORES"
02/05/2019,Planning,RTPI,155.00,.00,155.00,Professional Membership to RTPI,"CLUBS-CNTRY,MBRSHIP(ATHLET,REC,SPRTS,PRIVATE GOLF"
02/05/2019,Public Health,CHARTERED INSTITUTE OF,240.00,.00,240.00,Booking for 1 place (CCG) to attend the 11th Annual CIEH Housing and Health Conference @ cost of 240.00 Ref:CRMINV013341,"ORGANIZATIONS, CHARITABLE AND SOCIAL SERVICES"
02/05/2019,Sheltered Housing,QD STORES,11.65,2.33,13.98,Sundries for Hatherley court,DISCOUNT STORES
03/05/2019,Housing Repair,NEWPORT STORES (ESSEX),10.00,.00,10.00,Pre-pay meter top up on void,"GROCERY STORES, SUPERMARKETS"
03/05/2019,Museum S/W,WWW.UKPOS.COM,36.95,7.39,44.34,Cardboard leaflet holders for new exhibition,"OFFICE, SCHOOL SUPPLY, AND STATIONERY STORES"
03/05/2019,Office Services,ALDI 76 776,1.09,.00,1.09,Milk for Election,"GROCERY STORES, SUPERMARKETS"
03/05/2019,Thaxted Day Centre,WWW.BUZZCATERINGSUPPLI,31.75,6.35,38.10,Plates and bowls for Thaxted Day Centre,"COMMERCIAL EQUIPMENT, NOT ELSEWHERE CLASSIFIED"
06/05/2019,Thaxted Day Centre,TESCO STORE 3130,68.40,.20,68.60,Food provisions for meals at Thaxted Day Centre,"GROCERY STORES, SUPERMARKETS"
06/05/2019,Thaxted Day Centre,ALDI 76 776,20.68,.40,21.08,Food provisions for meals at Thaxted Day Centre,"GROCERY STORES, SUPERMARKETS"
07/05/2019,Housing Services,WH SMITH,50.00,.00,50.00,TP competition prize,NEWS DEALERS AND NEWSSTANDS
07/05/2019,Housing Services,WAITROSE 135,50.00,.00,50.00,TP competition prize,"GROCERY STORES, SUPERMARKETS"
07/05/2019,Museum S/W,WWW.RIDGEONS.CO.UK,33.43,.00,33.43,Chipboard sheet for new exhibition,"BUILDING MATERIALS, LUMBER STORES"
07/05/2019,Office Services,LOCKSTOCK & BARREL,5.83,1.16,6.99,Union key cutting,HARDWARE STORES
07/05/2019,Saffron Walden Day Centre,ALDI 76 776,53.18,1.06,54.24,Food provisions for meals at Saffron Walden Day Centre,"GROCERY STORES, SUPERMARKETS"
07/05/2019,Saffron Walden Day Centre,WAITROSE 135,3.17,.00,3.17,Food provision for meals at The Garden Room,"GROCERY STORES, SUPERMARKETS"
08/05/2019,Highway Ranger,RIDGEONS SAFFRON WALDE,177.42,35.48,212.90,"2x hammerite aerosol, 2x dowel, 3x box of wood screws, 1x dulux trade primer, 1x sanding belts, 1 insulation tape, 2x m6 pack of washers, 19 pcs drill bit set, 1x sanding roll, 1x ratchet strap, 1x 5l teak oil.","BUILDING MATERIALS, LUMBER STORES"
08/05/2019,Highway Ranger,WICKES BRAINTREE,34.17,6.83,41.00,"2x green gloss 750ml, paint brush pack of 3.","BUILDING MATERIALS, LUMBER STORES"
09/05/2019,Democratic Rep,WAITROSE 135,12.35,.00,12.35,Member Induction ( sandwiches for special dietary requirements),"GROCERY STORES, SUPERMARKETS"
09/05/2019,Saffron Walden Day Centre,ALDI 76 776,13.49,.00,13.49,Food provisions for meals at Saffron Walden Day Centre,"GROCERY STORES, SUPERMARKETS"
10/05/2019,Health & Safety,WICKES BISHOP'S STORTF,17.00,.00,17.00,hacksaw blades,"BUILDING MATERIALS, LUMBER STORES"
10/05/2019,Legal Services,WWW.MONEYCLAIM.GOV,77.00,.00,77.00,Money Claim Online - Warrant of control application,GOVERNMENT SERVICES-NOT ELSEWHERE CLASSIFIED
10/05/2019,Museum S/W,RIDGEONS SAFFRON WALDE,61.64,12.33,73.97,"Paint, tapes and small saw for new exhibition","BUILDING MATERIALS, LUMBER STORES"
11/05/2019,Sheltered Housing,HOME BARGAINS,12.85,2.57,15.42,Padlocks,HARDWARE STORES
11/05/2019,Sheltered Housing,B&M RETAIL,6.67,1.33,8.00,Air Freshner,DISCOUNT STORES
11/05/2019,Sheltered Housing,DREAMS LTD,86.62,17.33,103.95,Bed Guest Room - Vic Mead,"EQUIP, FURNITURE, HOME FURNSHNGS STRS (EXCPT APPL)"
13/05/2019,Legal Services,WWW.MONEYCLAIM.GOV,60.00,.00,60.00,Money Claim Online - Start of Claim,GOVERNMENT SERVICES-NOT ELSEWHERE CLASSIFIED
13/05/2019,Sheltered Housing,AMZNMktplace,4.87,.98,5.85,Bands,MISCELLANEOUS AND SPECIALTY RETAIL STORES
13/05/2019,Sheltered Housing,AMZNMktplace,4.87,.98,5.85,Bands,MISCELLANEOUS AND SPECIALTY RETAIL STORES
13/05/2019,Sheltered Housing,AMZNMktplace,4.87,.98,5.85,Bands,MISCELLANEOUS AND SPECIALTY RETAIL STORES
13/05/2019,Sheltered Housing,AMZN Mktp UK MN6DQ2GU4,13.74,2.76,16.50,Door Signs,BOOK STORES
13/05/2019,Sheltered Housing,AMZNMktplace,4.88,.98,5.86,Bands,MISCELLANEOUS AND SPECIALTY RETAIL STORES
13/05/2019,Sheltered Housing,AMZNMktplace,4.88,.98,5.86,Bands,MISCELLANEOUS AND SPECIALTY RETAIL STORES
13/05/2019,Sheltered Housing,AMZNMktplace,4.88,.98,5.86,Bands,MISCELLANEOUS AND SPECIALTY RETAIL STORES
14/05/2019,Health Improvements,AMZNMktplace,45.75,9.15,54.90,A4 studded clear pockets for dementia packs,MISCELLANEOUS AND SPECIALTY RETAIL STORES
14/05/2019,Museum S/W,QD STORES,4.14,.84,4.98,White spirit and cloths for cleaning Museum porch notice board,DISCOUNT STORES
14/05/2019,Museum S/W,WH SMITH,11.65,2.33,13.98,Pack of coloured card and plain envelopes for visitor passes for event and information for local residents (delivered by hand),NEWS DEALERS AND NEWSSTANDS
14/05/2019,Saffron Walden Day Centre,ALDI 76 776,32.11,.59,32.70,Food provisions for meals at Saffron Walden Day Centre,"GROCERY STORES, SUPERMARKETS"
15/05/2019,Housing Services,NEWPORT STORES (ESSEX),15.00,.00,15.00,23 orchard close electric void top up,"GROCERY STORES, SUPERMARKETS"
15/05/2019,Museum S/W,UKMAPCENTRE,65.00,.00,65.00,UDC area (north) wall map for new exhibition,PROFESSIONAL SERVICES-NOT ELSEWHERE CLASSIFIED
15/05/2019,Museum S/W,UKMAPCENTRE,65.00,.00,65.00,UDC area (south) wall map for new exhibition,PROFESSIONAL SERVICES-NOT ELSEWHERE CLASSIFIED
15/05/2019,Museum S/W,AMZNMktplace,18.31,3.66,21.97,Paper cups for wildlife project,MISCELLANEOUS AND SPECIALTY RETAIL STORES
15/05/2019,Sheltered Housing,ALDI 76 776,3.31,.66,3.97,Tea/coffee for carecall meeting,"GROCERY STORES, SUPERMARKETS"
16/05/2019,Museum S/W,AMZNMktplace,15.49,3.10,18.59,Georello Kaleidogears for Volunteer Exhibition and subsequent Learning Officer activities,MISCELLANEOUS AND SPECIALTY RETAIL STORES
17/05/2019,Food Hygiene,WWW.HIGHFIELDS.CO.UK,175.00,.00,175.00,Cost of 100 Food Safety Handbooks for Level 2 Food Safety training @1.75 each.,BOOK STORES
17/05/2019,Museum S/W,AMZN Mktp UK MN8NY85F4,30.95,.00,30.95,"2 purple table cloths for events weekend 1-2 June and other events thereafter
Import fees deposit 5.16 but no VAT",BOOK STORES
17/05/2019,Museum S/W,AMZN Mktp UK MN2YF75Z4,19.92,.00,19.92,"1 pack of 50 Tyvek Wristbands for events weekend 1-2 June
Import fee deposit of 3.32 but no VAT",BOOK STORES
17/05/2019,Museum S/W,AMZNMktplace,9.98,.00,9.98,"2 packs of cable ties for events weekend 1-2 June and thereafter
Amazons supplier Excalibur not VAT registered and could not supply VAT receipt when requested",MISCELLANEOUS AND SPECIALTY RETAIL STORES
17/05/2019,Museum S/W,WAITROSE 135,16.70,.25,16.95,"Catering supplies for Museums at Night 17 May outdoor wildlife activities: coffee, instant hot chocolate, milk, gluten-free flapjacks/biscuits, orange squash. Mostly VAT zero-rated.","GROCERY STORES, SUPERMARKETS"
17/05/2019,Sheltered Housing,AMZNMKTPLACE AMAZON.CO,()75.99,.00,()75.99,Refund for undelivered mattress,MISCELLANEOUS AND SPECIALTY RETAIL STORES
18/05/2019,Museum S/W,AMZNMktplace,2.58,.52,3.10,"Purple Double Faced Satin Ribbon 10mm width (3/8"") - 50 Meters for Volunteer Week Bunting",MISCELLANEOUS AND SPECIALTY RETAIL STORES
18/05/2019,Museum S/W,AMZNMktplace,8.97,.00,8.97,"3 rolls magnetic adhesive tape for events weekend 1-2 June
8.97 without VAT",MISCELLANEOUS AND SPECIALTY RETAIL STORES
19/05/2019,Museum S/W,AMZN Mktp UK MN9WA9BG4,5.99,.00,5.99,"Bunting for 1-2 June events weekend and other events thereafter
5.99 without VAT",BOOK STORES
19/05/2019,Museum S/W,Amazon.co.uk MN8W43BO4,19.37,3.88,23.25,4 money belts for events weekend 1-2 June,DIRECT MARKETING-OTHER DIRECT MARKETERS/NOT ELSEW.
19/05/2019,Museum S/W,AMZNMktplace,5.37,1.08,6.45,1 pack of colour coding labels for 1-2 June events weekend,MISCELLANEOUS AND SPECIALTY RETAIL STORES
20/05/2019,General Planning,RTPI,309.00,.00,309.00,Professional Membership for officer,"CLUBS-CNTRY,MBRSHIP(ATHLET,REC,SPRTS,PRIVATE GOLF"
20/05/2019,Saffron Walden Day Centre,WAITROSE 135,3.00,.00,3.00,Food provisions for meals at Saffron Walden Day Centre,"GROCERY STORES, SUPERMARKETS"
21/05/2019,Saffron Walden Offices,RIDGEONS SAFFRON WALDE,2.99,.00,2.99,wood filler,"BUILDING MATERIALS, LUMBER STORES"
22/05/2019,Democratic Rep,TESCO STORE 3108,6.65,.00,6.65,Biscuits for European election,"GROCERY STORES, SUPERMARKETS"
22/05/2019,Housing Services,ONE STOP 1460,10.00,.00,10.00,29 St Edmund lane void electric,"GROCERY STORES, SUPERMARKETS"
22/05/2019,Sheltered Housing,UTTLESFORD DISTRIC,35.00,.00,35.00,Green bin for priorswood ct,"ASSOCIATIONS-CIVIC, SOCIAL, AND FRATERNAL"
22/05/2019,Vehicle Maintenance,TESCO STORE 3130,21.60,.00,21.60,"6 x dishcloths @ 1.00 per for vehicle cleansing
2 x T-Cloths @ 2.20 per for vehicle cleansing
8 x window cleanser @ 0.70 per for vehicle cleansing
8 x Anti-Bac Cleanser @ 0.70 per for vehicle cleansing","GROCERY STORES, SUPERMARKETS"
23/05/2019,Grounds Maintenance,AMZN Mktp UK MN1449694,23.95,4.80,28.75,Dog signs,BOOK STORES
23/05/2019,Highway Ranger,RIDGEONS SAFFRON WALDE,152.45,30.48,182.93,"4x Paint kettle, 3x packs of washers, 2x contractors caulk, 1x pack of coach bolts, 1x 2.6l Hammerite tin, 2x dulux under coat, 1x 5l gloss paint","BUILDING MATERIALS, LUMBER STORES"
23/05/2019,Saffron Walden Offices,HOMEBASE LTD 643,45.00,.00,45.00,Lights for polling station,"BUILDING MATERIALS, LUMBER STORES"
23/05/2019,Sheltered Housing,DREAMS LTD,86.63,17.32,103.95,Bed Guest room vic mead,"EQUIP, FURNITURE, HOME FURNSHNGS STRS (EXCPT APPL)"
23/05/2019,Sheltered Housing,WWW.LIGHTS4FUN.CO.,9.14,1.83,10.97,,MISCELLANEOUS AND SPECIALTY RETAIL STORES
24/05/2019,Chairman,PAYPAL  CVSU,90.00,.00,90.00,Tickets for Chairman to attend CVSU event,"ORGANIZATIONS, CHARITABLE AND SOCIAL SERVICES"
24/05/2019,Highway Ranger,J GARD & SONS,88.82,17.76,106.58,"6x 2.1m  1""x3"" beech     8x 2.1m 1""x2"" beech wood","BUILDING MATERIALS, LUMBER STORES"
24/05/2019,Museum S/W,HOMEBASE LTD 643,5.60,1.40,7.00,Drawer knobs for making interactive display for new exhibition,"BUILDING MATERIALS, LUMBER STORES"
24/05/2019,Revenues Admin,SOUTHEND COUNTY,68.00,.00,68.00,Revenue Court Fee,FINES
24/05/2019,Thaxted Day Centre,TESCO STORE 2574,80.86,.00,80.86,Food provisions for meals at Thaxted Day Centre,"GROCERY STORES, SUPERMARKETS"
24/05/2019,Thaxted Day Centre,HP INC UK LIMITED,2.91,.58,3.49,Ink for Thaxted Day Centre,"COMPUTERS, COMPUTER PERIPHERAL EQUIPMENT, SOFTWARE"
25/05/2019,Sheltered Housing,PERFORMANCE HEALTH UK,66.20,13.24,79.44,Exercise Bands,DENTAL/LAB/MED/OPHTHALMIC HOSP EQUIP & SUPPLIES
26/05/2019,Democratic Rep,TESCO STORE 3108,92.00,.00,92.00,Election Refreshments,"GROCERY STORES, SUPERMARKETS"
27/05/2019,Thaxted Day Centre,TESCO STORE 3130,86.98,.00,86.98,Food provisions for meals at Thaxted Day Centre,"GROCERY STORES, SUPERMARKETS"
27/05/2019,Thaxted Day Centre,ALDI 76 776,16.63,.80,17.43,Food provisions for meals at Thaxted Day Centre,"GROCERY STORES, SUPERMARKETS"
28/05/2019,Building Control,Trainline.com,159.44,.00,159.44,2 x BC Officers travel to Wolverhampton and return to register for apprenticeship course due to commence Sept 2019,PASSENGER RAILWAYS
28/05/2019,Homelessness,Amazon.co.uk MN43O0954,130.01,25.98,155.99,Camp beds for TA,DIRECT MARKETING-OTHER DIRECT MARKETERS/NOT ELSEW.
28/05/2019,Saffron Walden Day Centre,ALDI 76 776,62.57,.28,62.85,Day centre food supplies,"GROCERY STORES, SUPERMARKETS"
30/05/2019,Museum S/W,QD STORES,3.32,.67,3.99,Extension lead for new exhibition projector,DISCOUNT STORES
30/05/2019,Planning Policy,Trainline.com,142.96,.00,142.96,Two Garden Community Officers travel to Birmingham to attend a Garden Community meeting.,PASSENGER RAILWAYS
30/05/2019,Sheltered Housing,WWW.ARGOS.CO.UK,104.41,.00,104.41,"Printer, kettle, laminator, pillow- have tried many times to get a receipt with no success. Attached order confirmation.",DISCOUNT STORES
30/05/2019,Sheltered Housing,SCREWFIX DIRECT,70.83,14.17,85.00,Planter for The Close. Unable to attach� receipt file size exceeded!,HOME SUPPLY WAREHOUSE STORES
31/05/2019,General Planning,Amazon.co.uk MN6Y45IL4,103.72,20.74,124.46,Microwave for the kitchen on the top floor,DIRECT MARKETING-OTHER DIRECT MARKETERS/NOT ELSEW.
31/05/2019,Highway Ranger,RIDGEONS SAFFRON WALDE,13.59,2.71,16.30,pack of 360 foam washers. bag of 40 coach bolts m8x100mm,"BUILDING MATERIALS, LUMBER STORES"
31/05/2019,Thaxted Day Centre,TESCO STORE 3130,30.79,.00,30.79,Food provisions for meals at Thaxted Day Centre,"GROCERY STORES, SUPERMARKETS"
03/06/2019,Public Health,CHARTERED INSTITUTE OF,"1,180.00",.00,"1,180.00","2 Places to attend ""Understanding and Applying HHSRS both days CCG/TM @ cost of 590.00 Per person Ref:CRMINV013952","ORGANIZATIONS, CHARITABLE AND SOCIAL SERVICES"
03/06/2019,Saffron Walden Day Centre,ALDI 76 776,63.47,.00,63.47,Provisions for Saffron Walden Day Centre Meals,"GROCERY STORES, SUPERMARKETS"
03/06/2019,Thaxted Day Centre,ALDI 76 776,65.22,.00,65.22,Food provisions for meals at Thaxted Day Centre,"GROCERY STORES, SUPERMARKETS"
03/06/2019,Thaxted Day Centre,TESCO STORE 3130,35.52,.00,35.52,Food provisions for meals at Thaxted Day Centre,"GROCERY STORES, SUPERMARKETS"
03/06/2019,Vehicle Maintenance,WWW.TCFIXINGS.CO.UK,62.38,.00,62.38,error on Invoice. this payment was refunded. No Purchase made.,"BUILDING MATERIALS, LUMBER STORES"
03/06/2019,Vehicle Maintenance,WWW.TCFIXINGS.CO.UK,82.17,16.43,98.60,"1 x box of M12X30 Bolts @ 40.42
1 x box of M12 grade 8 Nyloc Nuts @ 41.75","BUILDING MATERIALS, LUMBER STORES"
03/06/2019,Vehicle Maintenance,WWW.TCFIXINGS.CO.UK,()62.38,.00,()62.38,refund,"BUILDING MATERIALS, LUMBER STORES"
04/06/2019,General Planning,HOTEL IBIS,243.00,.00,243.00,Two night stay for GIS officer for two day course June 2019,HOTEL IBIS
04/06/2019,Homelessness,TRAVELODGE,69.79,13.96,83.75,TA,TRAVELODGE
04/06/2019,Office Services,TESCO STORE 3130,8.00,.00,8.00,Refreshments,"GROCERY STORES, SUPERMARKETS"
05/06/2019,Highway Ranger,SCREWFIX BISHOPS STORT,144.82,28.94,173.76,100 pack of coach bolts.  9x 115mm wire wheel.  2x 115x1x22 metal cut. universal grinding wheel.,"BUILDING MATERIALS, LUMBER STORES"
05/06/2019,Housing Repair,CO-OP GROUP 310462,10.00,.00,10.00,Pre-pay meter top up on void,"GROCERY STORES, SUPERMARKETS"
05/06/2019,Saffron Walden Offices,CRYSTALTECH SERVICES (,372.96,.00,372.96,Annual maintenance for facilities dishwasher,ELECTRICAL AND SMALL APPLIANCE REPAIR SHOPS
05/06/2019,Sheltered Housing,B M RETAIL,9.99,2.00,11.99,Air Freshner,DISCOUNT STORES
05/06/2019,Thaxted Day Centre,TESCO STORE 3130,12.45,.00,12.45,Food provisions for meals at Thaxted Day Centre,"GROCERY STORES, SUPERMARKETS"
06/06/2019,Museum S/W,MEDLOCK ELECTRICAL,30.00,6.00,36.00,MR11 mini spotlights for Museum galleries,ELECTRICAL PARTS AND EQUIPMENT
06/06/2019,Museum S/W,RIDGEONS SAFFRON WALDE,2.40,.48,2.88,Wood to make new handle for dead stock freezer,"BUILDING MATERIALS, LUMBER STORES"
06/06/2019,Refuse & Recycling,WWW.LETSRECYCLE.COM,306.00,.00,306.00,Booking for LARAC conference 2019 (October 19).  Paid using GPC to qualify for early bird discount.,ADVERTISING SERVICES
06/06/2019,Refuse & Recycling,WWW.DVLA.GOV.UK,722.50,.00,722.50,Annual Road Fund Licence,GOVERNMENT SERVICES-NOT ELSEWHERE CLASSIFIED
07/06/2019,Highway Ranger,SCREWFIX BISHOPS STORT,6.25,1.24,7.49,5m bi material tape measure,"BUILDING MATERIALS, LUMBER STORES"
07/06/2019,Museum S/W,MEDLOCK ELECTRICAL,20.00,4.00,24.00,Starters and fluorescent tubes for Museum galleries,ELECTRICAL PARTS AND EQUIPMENT
09/06/2019,Thaxted Day Centre,TESCO STORE 3130,108.99,1.15,110.14,Food provisions for meals at Thaxted Day Centre,"GROCERY STORES, SUPERMARKETS"
09/06/2019,Thaxted Day Centre,ALDI 76 776,10.42,.86,11.28,Food provisions for meals at Thaxted Day Centre,"GROCERY STORES, SUPERMARKETS"
10/06/2019,Grounds Maintenance,JAY & ROB'S WINDSCREEN,70.00,8.75,78.75,window repaired after being broken by strimmer debris. vw polo.,AUTOMOTIVE SERVICE SHOPS
10/06/2019,Office Services,LOCKSTOCK & BARREL,7.00,.00,7.00,,HARDWARE STORES
10/06/2019,Saffron Walden Day Centre,ALDI 76 776,39.60,.00,39.60,Food provisions for Saffron Walden Day Centre meals,"GROCERY STORES, SUPERMARKETS"
11/06/2019,Museum S/W,WH SMITH,2.03,.40,2.43,Museum Volunteer �Get Well Soon� card 3.23 less privilege card discount of 82p.,NEWS DEALERS AND NEWSSTANDS
11/06/2019,Museum S/W,WAITROSE 135,6.67,1.33,8.00,2 x Kalanchoe ceramic � volunteers event - helper thank you gifts,"GROCERY STORES, SUPERMARKETS"
12/06/2019,Border Inspection,WWW.DICKIESSTORE.CO.UK,32.49,6.50,38.99,Cost of 8 x Hi Vis Safety Waistcoats @ 3.75 each. Del charge @ 2.49. Ref DWW 1169025,MEN'S AND WOMEN'S CLOTHING STORES
12/06/2019,Grounds Maintenance,RIDGEONS SAFFRON WALDE,8.37,1.67,10.04,160x 25mm panel pins,"BUILDING MATERIALS, LUMBER STORES"
12/06/2019,Highway Ranger,RIDGEONS SAFFRON WALDE,14.96,3.00,17.96,bag of 10 m6x30mm roofing bolts. 1l dark grey dulux trade undercoat.,"BUILDING MATERIALS, LUMBER STORES"
12/06/2019,Museum S/W,ASDA,24.75,.40,25.15,"Volunteer Tea Party catering
(NB 2 x bottles Squash subject to VAT at 20%)","GROCERY STORES, SUPERMARKETS"
12/06/2019,Sheltered Housing,WILKO RETAIL LIMIT,5.00,1.00,6.00,Ant Traps,HOUSEHOLD APPLIANCE STORES
13/06/2019,Health & Safety,ESEDIRECT.CO.UK,73.80,.00,73.80,sack barrow,"OFFICE, SCHOOL SUPPLY, AND STATIONERY STORES"
13/06/2019,Museum S/W,STEAMERS TRADING COOKS,2.75,.00,2.75,Volunteer 70th Birthday card � for presentation at Volunteers Tea Party,MISCELLANEOUS HOUSE FURNISHING SPECIALTY SHOPS
13/06/2019,Museum S/W,TESCO STORE 3130,6.10,.00,6.10,Volunteer Tea Party catering,"GROCERY STORES, SUPERMARKETS"
13/06/2019,Public Health (Commercial Team),BARUCH ENTERPRISES,29.75,5.95,35.70,Cost of 6 x Lithium Batteries for Carbon Monoxide Monitor @ 4.96 each. Ref SO455401,ELECTRICAL PARTS AND EQUIPMENT
14/06/2019,Border Inspection,QUADRATICA UK LTD,7.58,1.52,9.10,Cost of General Security Awareness training for AW @7.58 Ref QW-093318,"COLLEGES, UNIV, PRO SCHOOLS, JUNIOR COLLEGES"
14/06/2019,Sheltered Housing,Premier Farnell,179.76,35.95,215.71,"air dusters for sheltered sites, failed to upload receipt as 4 megabytes exceeded.",ELECTRICAL PARTS AND EQUIPMENT
16/06/2019,Thaxted Day Centre,ALDI 76 776,32.70,.80,33.50,Food provisions for meals at Thaxted Day Centre,"GROCERY STORES, SUPERMARKETS"
16/06/2019,Thaxted Day Centre,TESCO STORE 3130,82.15,1.33,83.48,Food provisions for meals at Thaxted Day Centre,"GROCERY STORES, SUPERMARKETS"
17/06/2019,,ENTERPRISE RENT-A-CAR,1.00,.00,1.00,,ENTERPRISE RENT-A-CAR
17/06/2019,Museum S/W,TESCO STORE 2101,44.50,.00,44.50,Volunteer Tea Party catering,"GROCERY STORES, SUPERMARKETS"
17/06/2019,Museum S/W,WAITROSE 135,14.95,.00,14.95,"Catering supplies for Volunteers� event on 17 June (milk, coffee, tea � all VAT zero rated)","GROCERY STORES, SUPERMARKETS"
17/06/2019,Planning Policy,WAITROSE 135,23.63,.67,24.30,Lunch for QC's meeting 17 06 2019,"GROCERY STORES, SUPERMARKETS"
17/06/2019,Saffron Walden Day Centre,ALDI 76 776,46.30,.00,46.30,Provisions for Saffron Walden Meals,"GROCERY STORES, SUPERMARKETS"
18/06/2019,Grounds Maintenance,AMZNMKTPLACE AMAZON.CO,145.80,29.15,174.95,Artificial Screening,MISCELLANEOUS AND SPECIALTY RETAIL STORES
18/06/2019,Saffron Walden Offices,GREATER ANGLIA T/O,53.70,.00,53.70,,PASSENGER RAILWAYS
18/06/2019,Sheltered Housing,PAYPAL  INOPLAZ,61.00,.00,61.00,Acrylic display for Lifeline stand. Ordered through e-bay but not on my account so cannot trace receipt and no e-mail confirmation recieved,CHEMICALS/ALLIED PRODUCTS NOT ELSEWHERE CLASSIFIED
18/06/2019,Sheltered Housing,PAYPAL  BLUECHARGED,1.99,.00,1.99,USB cable for printer at JDP. Order confirmation but no receipt available,ELECTRONIC SALES
18/06/2019,Sheltered Housing,PAYPAL  THEWHOLESAL,20.27,.00,20.27,"Leaflet holders for Lifeline stands, order confirmation sent but no receipt","CONSULTING, MANAGEMENT, AND PUBLIC RELATIONS SVCS"
19/06/2019,Green Waste,LOCKSTOCK & BARREL,7.00,.00,7.00,for the cutting of 2 Depot Keys. For Green Waste Teams over the weekends. 2 @ 3.50 per.,HARDWARE STORES
19/06/2019,Grounds Maintenance,TRAVIS PERKINS,16.74,3.35,20.09,3x Blue circle  postcrete @ 5.58 each,"BUILDING MATERIALS, LUMBER STORES"
19/06/2019,Health & Safety,SCREWFIX BISHOPS STORT,46.94,.00,46.94,"saws, ratchet straps, line paint","BUILDING MATERIALS, LUMBER STORES"
19/06/2019,Museum S/W,QD STORES,2.49,.50,2.99,Replacement batteries for THG machine,DISCOUNT STORES
19/06/2019,Street Cleansing,RIDGEONS SAFFRON WALDE,169.17,.00,169.17,10x fence posts- 4x 25kg cement - 1x bag of coach screws,"BUILDING MATERIALS, LUMBER STORES"
19/06/2019,Street Cleansing,TRAVIS PERKINS,40.75,8.15,48.90,1x bulk bag of ballast for bin replacement,"BUILDING MATERIALS, LUMBER STORES"
19/06/2019,Thaxted Day Centre,HP INC UK LIMITED,2.91,.58,3.49,Ink for Thaxted Day centre,"COMPUTERS, COMPUTER PERIPHERAL EQUIPMENT, SOFTWARE"
20/06/2019,Animal Warden,WWW.COLLINSNETS.CO.UK,42.00,8.40,50.40,Supply of stainless steel catch net- D Frame - 5FT Handle at cost of 32.00 + Carriage and Vat Ref: #23160,MISCELLANEOUS GENERAL MERCHANDISE
20/06/2019,Border Inspection,DISCLOSURE AND BARRING,25.00,.00,25.00,Cost of Basic DBS check for AW. Ref V10407649,GOVERNMENT SERVICES-NOT ELSEWHERE CLASSIFIED
20/06/2019,Grounds Maintenance,RIDGEONS SAFFRON WALDE,15.30,.00,15.30,1x 750ml Hammerite metal rust paint,"BUILDING MATERIALS, LUMBER STORES"
20/06/2019,Legal Services,ROBERT RODRIGUEZ TA AB,7.00,.00,7.00,Taxi for QC,LIMOUSINES AND TAXICABS
20/06/2019,Street Cleansing,SCREWFIX BISHOPS STORT,8.08,1.60,9.68,1 x pack of hex screws-- 1x easyfix nyllock nut.  for bins on the a120,"BUILDING MATERIALS, LUMBER STORES"
20/06/2019,Thaxted Day Centre,TESCO STORE 3130,11.76,.00,11.76,Food provisions for meals at Thaxted Day Centre,"GROCERY STORES, SUPERMARKETS"
21/06/2019,Planning Policy,CHAIRHIRE.CO.UK,705.01,141.00,846.01,Conference chairs with writing tablet hire for Local Plan hearings,PROFESSIONAL SERVICES-NOT ELSEWHERE CLASSIFIED
21/06/2019,Public Health (Commercial Team),PAYPAL  SENGABAYLTD,4.89,.00,4.89,Cost of 1 box of 100 latex gloves for food inspection. Ref  27-03507-35181,HARDWARE STORES
21/06/2019,Sheltered Housing,HOMEBASE LTD 643,67.48,13.50,80.98,Paint and brushes for painting wooden gazebo at Alexia House,"BUILDING MATERIALS, LUMBER STORES"
23/06/2019,Border Inspection,AMZNMktplace,11.88,2.38,14.26,Cost of 2 x boxes of 100 medium latex gloves for food inspection at the BIP @ 5.94 each. Ref INV-GB-169717161-2019-58245,MISCELLANEOUS AND SPECIALTY RETAIL STORES
24/06/2019,,TESCO STORE 2574,24.62,.00,24.62,,"GROCERY STORES, SUPERMARKETS"
24/06/2019,Border Inspection,AMZNMktplace,18.34,1.92,20.26,Cost of 2 packs of 100 cable ties @4.38 each and 2 boxes of 100 small latex gloves @ 5.75 each incl. VAT. for food inspection at the BIP. Ref  026-9258225-9523513,MISCELLANEOUS AND SPECIALTY RETAIL STORES
24/06/2019,Chief Executive,TESCO STORE 3108,6.61,.00,6.61,Foodbank and Armed Forces day delivery charges,"GROCERY STORES, SUPERMARKETS"
24/06/2019,Environmental Improvements,FIRSTAID4LESS.CO.UK,95.88,.00,95.88,,MISCELLANEOUS AND SPECIALTY RETAIL STORES
25/06/2019,Revenues Admin,SOUTHEND COUNTY,460.50,.00,460.50,Revenue Court Fee,FINES
27/06/2019,,DVLA VEHICLE TAX,262.50,.00,262.50,,GOVERNMENT SERVICES-NOT ELSEWHERE CLASSIFIED
27/06/2019,Housing Repair,DVLA VEHICLE TAX,142.50,.00,142.50,Annual Road Fund Licence,GOVERNMENT SERVICES-NOT ELSEWHERE CLASSIFIED
27/06/2019,Museum S/W,WWW.BOYDELLANDBREWER.C,48.08,.62,48.70,"Book for archaeological reference, featuring a significant sword in Saffron Walden Museum�s collections: �The Sword in Early Medieval Northern Europe� by Sue Brunning, at special discount rate (saving 15) (VAT on delivery only, book exempt)",BOOK STORES
27/06/2019,Museum S/W,QD STORES,18.28,3.67,21.95,Batteries for environmental-monitoring probe and plastic boxes (at sale price) for storing archaeological finds,DISCOUNT STORES
27/06/2019,Refuse & Recycling,DVLA VEHICLE TAX,"1,330.50",.00,"1,330.50",Annual Road Fund Licence,GOVERNMENT SERVICES-NOT ELSEWHERE CLASSIFIED
27/06/2019,Refuse & Recycling,DVLA VEHICLE TAX,"1,330.50",.00,"1,330.50",Annual Road Fund Licence,GOVERNMENT SERVICES-NOT ELSEWHERE CLASSIFIED
27/06/2019,Refuse & Recycling,DVLA VEHICLE TAX,"1,330.50",.00,"1,330.50",Annual Road Fund Licence,GOVERNMENT SERVICES-NOT ELSEWHERE CLASSIFIED
27/06/2019,Trade Waste,DVLA VEHICLE TAX,722.50,.00,722.50,Annual Road Fund Licence,GOVERNMENT SERVICES-NOT ELSEWHERE CLASSIFIED
28/06/2019,Chief Executive,TESCO STORE 2101,6.84,.00,6.84,Donation to CVSU for the Armed Forces Day - Horsebox Catering (delivery costs outside Tesco vouchers),"GROCERY STORES, SUPERMARKETS"
28/06/2019,Housing Repair,NEWPORT STORES (ESSEX),10.00,.00,10.00,Pre-pay meter top up on void,"GROCERY STORES, SUPERMARKETS"
28/06/2019,Museum S/W,GA AUDLEY STORTFORD ST,6.00,.00,6.00,"Parking (off-peak rate) at Audley End Station for train to London on 28 June, collecting archaeological acquisitions from British Museum",AUTOMOBILE PARKING LOTS AND GARAGES
28/06/2019,Museum S/W,GREATER ANGLIA T/O,19.40,.00,19.40,"Train ticket from Audley End to London, collecting archaeological acquisitions from British Museum. Off-peak one-day travel card incl tube, with railcard discount",PASSENGER RAILWAYS
30/06/2019,Thaxted Day Centre,ALDI 76 776,17.59,.00,17.59,Food provisions for meals at Thaxted Day Centre,"GROCERY STORES, SUPERMARKETS"
30/06/2019,Thaxted Day Centre,TESCO STORE 3130,78.21,.00,78.21,Food provisions for meals at Thaxted Day Centre,"GROCERY STORES, SUPERMARKETS"
01/07/2019,Democratic Rep,HERMITAGE HOTEL,67.80,.00,67.80,Cancellation charges (LGA Conference accommodation - Cllr Lees),"LODGING-HOTELS,MOTELS,RESORTS-NOT CLASSIFIED"
01/07/2019,Planning Policy,Trainline.com,33.42,.00,33.42,New Garden Town induction meeting train travel - Officer x 1,PASSENGER RAILWAYS
01/07/2019,Planning Policy,Trainline.com,54.84,.00,54.84,New Garden Town induction meeting train travel - Officer x 2,PASSENGER RAILWAYS
01/07/2019,Planning Policy,Trainline.com,30.68,.00,30.68,New Garden Town induction meeting - Officer 1,PASSENGER RAILWAYS
01/07/2019,Planning Policy,Trainline.com,24.57,.00,24.57,New Garden Town induction meeting train travel - Officer x 1,PASSENGER RAILWAYS
01/07/2019,Saffron Walden Day Centre,ALDI 76 776,17.77,.00,17.77,Food provisions for meals at Saffron Walden Day Centre,"GROCERY STORES, SUPERMARKETS"
02/07/2019,,ENTERPRISE RENT-A-CAR,()1.00,.00,()1.00,,ENTERPRISE RENT-A-CAR
02/07/2019,Animal Warden,DVLA VEHICLE TAX,262.50,.00,262.50,EF10LPX VED,GOVERNMENT SERVICES-NOT ELSEWHERE CLASSIFIED
02/07/2019,Grounds Maintenance,JAY & ROB'S WINDSCREEN,110.00,22.00,132.00,replacement window for Toyota aygo,AUTOMOTIVE SERVICE SHOPS
02/07/2019,Office Services,TESCO STORE 3130,15.60,.00,15.60,Refreshments,"GROCERY STORES, SUPERMARKETS"
02/07/2019,Planning Policy,TESCO STORES 6812,5.00,.00,5.00,Coffee supplies for local plan,"GROCERY STORES, SUPERMARKETS"
02/07/2019,Refuse & Recycling,DVLA VEHICLE TAX,262.50,.00,262.50,EN10BGE VED,GOVERNMENT SERVICES-NOT ELSEWHERE CLASSIFIED
02/07/2019,Refuse & Recycling,DVLA VEHICLE TAX,262.50,.00,262.50,EN10BFX VED,GOVERNMENT SERVICES-NOT ELSEWHERE CLASSIFIED
02/07/2019,Saffron Walden Day Centre,WAITROSE 135,5.40,.00,5.40,Food provisions for meals at Saffron Walden Day Centre,"GROCERY STORES, SUPERMARKETS"
03/07/2019,Legal Services,WWW.MONEYCLAIM.GOV,105.00,.00,105.00,Money Claim Online - Start of claim,GOVERNMENT SERVICES-NOT ELSEWHERE CLASSIFIED
03/07/2019,Museum S/W,MEDLOCK ELECTRICAL,9.60,1.92,11.52,3 x 6ft. strip lights for Museum galleries,ELECTRICAL PARTS AND EQUIPMENT
03/07/2019,Office Cleaning,WWW.NISBETS.COM,130.37,32.78,163.15,"Sack holder, dishwasher salt, glasses",DIRECT MARKETING-CATALOG MERCHANTS
03/07/2019,Sheltered Housing,QD STORES,8.68,1.74,10.42,Lifeline cleaning sundries,DISCOUNT STORES
04/07/2019,Housing Services,PREMIER INN,140.00,.00,140.00,Accommodation,PREMIER INN
04/07/2019,Noise Monitoring,TESCO STORE 2574,29.40,.00,29.40,"window cleaner, surface cleaner, coffee, biscuits","GROCERY STORES, SUPERMARKETS"
04/07/2019,Office Services,WWW.NISBETS.COM,66.97,13.38,80.35,"Cups and Saucers, glasses, carafe for Newport depot",DIRECT MARKETING-CATALOG MERCHANTS
05/07/2019,Museum S/W,QD STORES,2.74,.55,3.29,AAA batteries for Museum activities torches,DISCOUNT STORES
05/07/2019,Sheltered Housing,TESCO STORE 3130,54.84,10.97,65.81,Food for Sheltered event,"GROCERY STORES, SUPERMARKETS"
05/07/2019,Sheltered Housing,WICKES BUILDING,.01,.00,.01,Security test for on-line purchase,"BUILDING MATERIALS, LUMBER STORES"
05/07/2019,Sheltered Housing,WICKES BUILDING,()5.00,.00,()5.00,Refund as order to Norman Court went missing,"BUILDING MATERIALS, LUMBER STORES"
07/07/2019,Thaxted Day Centre,TESCO STORE 3130,101.09,.00,101.09,Food provisions for meals at Thaxted Day Centre,"GROCERY STORES, SUPERMARKETS"
08/07/2019,Communications,PAYPAL  LGCOMMS2018,230.00,46.00,276.00,LG Comms Academy registration,"ORGANIZATIONS, MEMBERSHIP-NOT ELSEWHERE CLASSIFIED"
08/07/2019,Saffron Walden Day Centre,WAITROSE 135,2.72,.00,2.72,Food provisions for meals at Saffron Walden Day Centre,"GROCERY STORES, SUPERMARKETS"
09/07/2019,Museum S/W,TL&GN RAILWAY WEB,42.70,.00,42.70,"Rail ticket for Learning Officer to attend course at V&A Museum, London",PASSENGER RAILWAYS
09/07/2019,Public Health,CHARTERED INSTITUTE OF,()590.00,.00,()590.00,Credit for 1 person's Training booked in error - no credit note received - Credit applied to Invoice CRMINV013952 total 1180.00,"ORGANIZATIONS, CHARITABLE AND SOCIAL SERVICES"
09/07/2019,Saffron Walden Day Centre,ALDI 76 776,25.01,.55,25.56,Food provisions for meals at Saffron Walden Day Centre,"GROCERY STORES, SUPERMARKETS"
10/07/2019,Benefits Admin,ACM TRAINING,89.10,17.82,106.92,External training - discount given if paid in full at time of booking.,PROFESSIONAL SERVICES-NOT ELSEWHERE CLASSIFIED
10/07/2019,Museum S/W,MEDLOCK ELECTRICAL,13.20,2.64,15.84,6 x 2ft. strip lights for Museum galleries,ELECTRICAL PARTS AND EQUIPMENT
10/07/2019,Museum S/W,GA AUDLEY STORTFORD ST,6.00,.00,6.00,"Parking for train to Norwich, Museums Association meeting in Norwich Castle",AUTOMOBILE PARKING LOTS AND GARAGES
10/07/2019,Museum S/W,GREATER ANGLIA T/O,16.85,.00,16.85,"Train ticket to Norwich for MA meeting, off-peak return (with railcard discount) for Museums Association regional meeting at Norwich Castle",PASSENGER RAILWAYS
11/07/2019,Museum S/W,STEAMERS TRADING COOKS,.33,.07,.40,4 x Perspex displays (purchased in closing down sale),MISCELLANEOUS HOUSE FURNISHING SPECIALTY SHOPS
11/07/2019,Museum S/W,QD STORES,2.91,.58,3.49,Ant killing spray for nest outside Museum,DISCOUNT STORES
11/07/2019,Public Health,LOCKSTOCK & BARREL,5.83,1.17,7.00,Cost of 2 x Key Cut Service @3.50,HARDWARE STORES
11/07/2019,Sheltered Housing,HOMEBASE LTD 643,108.28,21.66,129.94,"Tables for Reynolds Ct, and paint for Alexia","BUILDING MATERIALS, LUMBER STORES"
12/07/2019,,PAYPAL  MOTOKIDIREC,58.17,.00,58.17,,"GAME, TOY, AND HOBBY SHOPS"
12/07/2019,Legal Services,WWW.MONEYCLAIM.GOV,77.00,.00,77.00,Money Claim Online - Warrant of Control,GOVERNMENT SERVICES-NOT ELSEWHERE CLASSIFIED
15/07/2019,Saffron Walden Day Centre,ALDI 76 776,20.15,.00,20.15,Food provisions for meals at Saffron Walden Day Centre,"GROCERY STORES, SUPERMARKETS"
15/07/2019,Sheltered Housing,HOMEBASE LTD 619,10.00,2.00,12.00,Fence Paint Barkers Mead,"BUILDING MATERIALS, LUMBER STORES"
15/07/2019,Sheltered Housing,ALDI 76 776,8.54,1.71,10.25,Refreshments for training,"GROCERY STORES, SUPERMARKETS"
15/07/2019,Sheltered Housing,QD STORES,14.95,.00,14.95,Sundries for sites,DISCOUNT STORES
15/07/2019,Thaxted Day Centre,ALDI 76 776,47.40,.80,48.20,Food provisions for meals at Thaxted Day Centre,"GROCERY STORES, SUPERMARKETS"
17/07/2019,Public Health,ARUN DC ELMS,70.00,.00,70.00,Subscription for LA Officers Caravan Site Licensing Training/Advice Via Cornerstone Chambers @ cost of 70.00.,GOVERNMENT SERVICES-NOT ELSEWHERE CLASSIFIED
18/07/2019,Housing Services,SP   CROSSWORDSITE,11.02,2.20,13.22,Crossword and wordsearch for WOW,"GAME, TOY, AND HOBBY SHOPS"
18/07/2019,Museum S/W,CONSERVATION RESOURCES,25.41,5.08,30.49,Conservation resources: 1 x VULPEX 100ml and 1 x Paraloid Fixative + Carriage,INDUSTRIAL SUPPLIES NOT ELSEWHERE CLASSIFIED
18/07/2019,Public Health (Commercial Team),CHARTERED INSTITUTE OF,264.00,.00,264.00,Fee for the Higher Certificate Interview fee for TN Ref 156667125 Interview date 19.09.19,"ORGANIZATIONS, CHARITABLE AND SOCIAL SERVICES"
18/07/2019,Refuse & Recycling,Amazon.co.uk MH4RI7N64,47.84,4.35,52.19,"Thermos Cool Box, Blue, 32 L",DIRECT MARKETING-OTHER DIRECT MARKETERS/NOT ELSEW.
18/07/2019,Refuse & Recycling,Amazon.co.uk MH4R30N64,47.85,4.35,52.20,"Thermos Cool Box, Blue, 32 L",DIRECT MARKETING-OTHER DIRECT MARKETERS/NOT ELSEW.
18/07/2019,Refuse & Recycling,Amazon.co.uk MH4TA3NS4,21.75,4.35,26.10,"Thermos Cool Box, Blue, 32 L",DIRECT MARKETING-OTHER DIRECT MARKETERS/NOT ELSEW.
18/07/2019,Refuse & Recycling,Amazon.co.uk MH4XY7NZ4,47.85,4.35,52.20,"Thermos Cool Box, Blue, 32 L",DIRECT MARKETING-OTHER DIRECT MARKETERS/NOT ELSEW.
18/07/2019,Refuse & Recycling,Amazon.co.uk MH5RX9NE4,47.85,4.35,52.20,"Thermos Cool Box, Blue, 32 L",DIRECT MARKETING-OTHER DIRECT MARKETERS/NOT ELSEW.
18/07/2019,Refuse & Recycling,Amazon.co.uk MH87G3NX4,47.85,4.35,52.20,"Thermos Cool Box, Blue, 32 L",DIRECT MARKETING-OTHER DIRECT MARKETERS/NOT ELSEW.
18/07/2019,Refuse & Recycling,Amazon.co.uk MH9QL5NI4,47.85,4.35,52.20,"Thermos Cool Box, Blue, 32 L",DIRECT MARKETING-OTHER DIRECT MARKETERS/NOT ELSEW.
18/07/2019,Refuse & Recycling,Amazon.co.uk MH0TA3NT4,47.85,4.35,52.20,"Thermos Cool Box, Blue, 32 L",DIRECT MARKETING-OTHER DIRECT MARKETERS/NOT ELSEW.
18/07/2019,Refuse & Recycling,Amazon.co.uk MH0TS6NU4,47.85,4.35,52.20,"Thermos Cool Box, Blue, 32 L",DIRECT MARKETING-OTHER DIRECT MARKETERS/NOT ELSEW.
18/07/2019,Refuse & Recycling,Amazon.co.uk MH1FR4NW4,47.85,4.35,52.20,"Thermos Cool Box, Blue, 32 L",DIRECT MARKETING-OTHER DIRECT MARKETERS/NOT ELSEW.
18/07/2019,Refuse & Recycling,Amazon.co.uk MH1TB2N04,47.85,4.35,52.20,"Thermos Cool Box, Blue, 32 L",DIRECT MARKETING-OTHER DIRECT MARKETERS/NOT ELSEW.
18/07/2019,Refuse & Recycling,Amazon.co.uk MH2TW3N34,47.85,4.35,52.20,"Thermos Cool Box, Blue, 32 L",DIRECT MARKETING-OTHER DIRECT MARKETERS/NOT ELSEW.
18/07/2019,Refuse & Recycling,Amazon.co.uk MH3181N54,47.85,4.35,52.20,"Thermos Cool Box, Blue, 32 L",DIRECT MARKETING-OTHER DIRECT MARKETERS/NOT ELSEW.
18/07/2019,Saffron Walden Day Centre,WAITROSE 135,5.23,.00,5.23,Food provisions for Saffron Walden Day Centre,"GROCERY STORES, SUPERMARKETS"
18/07/2019,Saffron Walden Offices,AO RETAIL LIMITED,186.67,37.33,224.00,Fridge for Env Health corridor,HOUSEHOLD APPLIANCE STORES
19/07/2019,,WWW.UKSAFETYFOOTWEAR.C,71.85,.00,71.85,,MEN'S/WOMEN'S/CHILDREN'S UNIFORMS/COMMERCIAL CLOTH
19/07/2019,Museum S/W,MEDLOCK ELECTRICAL,12.00,2.40,14.40,5 x 3ft. strip lights for Museum galleries,ELECTRICAL PARTS AND EQUIPMENT
19/07/2019,Refuse & Recycling,AMZNMKTPLACE AMAZON.CO,81.25,16.25,97.50,4 x Thermos Reuseable Freeze Board - 200 g,MISCELLANEOUS AND SPECIALTY RETAIL STORES
21/07/2019,Museum S/W,GREATER ANGLIA T/O,99.50,.00,99.50,Travel (professional) Stansted Airport to Oxford return re: WJA attendance at Retail Event.  VAT Zero Rate.,PASSENGER RAILWAYS
22/07/2019,Museum S/W,EAT 1997,5.92,1.18,7.10,Breakfast:  06.46am WJA re Retail Event,"EATING PLACES, RESTAURANTS"
22/07/2019,Refuse & Recycling,TESCO STORE 3108,8.00,.00,8.00,Delivery costs for water for Street Services (during hot weather) - no receipt,"GROCERY STORES, SUPERMARKETS"
22/07/2019,Saffron Walden Day Centre,ALDI 76 776,101.58,2.56,104.14,Food provisions for Saffron Walden Day Centre,"GROCERY STORES, SUPERMARKETS"
23/07/2019,Museum S/W,AMZNMktplace,11.87,2.38,14.25,Air dry clay for Museum craft activities,MISCELLANEOUS AND SPECIALTY RETAIL STORES
23/07/2019,Museum S/W,YOURDESIGN,18.95,3.00,21.95,Aprons for Museum craft activities,MEN'S AND WOMEN'S CLOTHING STORES
23/07/2019,Museum S/W,AMZNMktplace,11.87,2.38,14.25,Air dry clay for Museum craft activities,MISCELLANEOUS AND SPECIALTY RETAIL STORES
23/07/2019,Saffron Walden Day Centre,BURTON AND SON,7.99,.00,7.99,Food provisions for Saffron Walden Day Centre,"FREEZER, LOCKER MEAT PROVISIONERS"
23/07/2019,Saffron Walden Offices,PAYPAL  FIXEDASSETD,24.95,.00,24.95,Extron Box,ELECTRICAL AND SMALL APPLIANCE REPAIR SHOPS
23/07/2019,Sheltered Housing,PAYPAL  PANGSUIDONG,13.89,.00,13.89,AIR CONDITIONER KL,VARIETY STORES
23/07/2019,Thaxted Day Centre,HP INC UK LIMITED,2.91,.58,3.49,Printer Ink Cartridges for use at Thaxted Day Centre,"COMPUTERS, COMPUTER PERIPHERAL EQUIPMENT, SOFTWARE"
24/07/2019,Benefits Admin,TESCO STORE 3130,5.62,.00,5.62,Biscuits for Essex Benefit Managers Meeting 24/7/19,"GROCERY STORES, SUPERMARKETS"
24/07/2019,Housing Services,TESCO STORES 6812,125.00,.00,125.00,TP refreshments,"GROCERY STORES, SUPERMARKETS"
24/07/2019,Museum S/W,AMZNMktplace,2.32,.47,2.79,Clay sculpturing tools for craft activities,MISCELLANEOUS AND SPECIALTY RETAIL STORES
24/07/2019,Museum S/W,Amazon.co.uk MH9998EH4,3.95,.00,3.95,Colouring books for Learning Officer - VAT zero rated,DIRECT MARKETING-OTHER DIRECT MARKETERS/NOT ELSEW.
24/07/2019,Refuse & Recycling,TESCO STORE 3108,6.00,.00,6.00,Delivery cost of water for street services (during hot weather),"GROCERY STORES, SUPERMARKETS"
24/07/2019,Saffron Walden Offices,AMZNMktplace,44.96,8.99,53.95,Bird away gel,MISCELLANEOUS AND SPECIALTY RETAIL STORES
24/07/2019,Sheltered Housing,B&M RETAIL,8.33,1.67,10.00,AIR FRESHNERS BARKERS MEAD & PWC,DISCOUNT STORES
24/07/2019,Sheltered Housing,HOME BARGAINS,3.73,.75,4.48,PADLOCK FOR ALAN HASLER BATTERIES FOR AIR FRESHNERS BM &PWC,HARDWARE STORES
25/07/2019,Refuse & Recycling,TESCO STORE 3108,8.00,.00,8.00,Delivery charge for water for street services during hot weather,"GROCERY STORES, SUPERMARKETS"
25/07/2019,Saffron Walden Offices,RICS COM GBP CYBS,540.00,.00,540.00,Continuation of Professional Development - Royal Institution of Chartered Surveyors (RICS) Training � RICS Building Surveying Conference.,"ORGANIZATIONS, MEMBERSHIP-NOT ELSEWHERE CLASSIFIED"
26/07/2019,,INSURE THE BOX LTD,111.99,.00,111.99,,"INSURANCE SALES,UNDERWRITING,AND PREMIUMS"
26/07/2019,Museum S/W,WH SMITH,11.54,.84,12.38,Cards for Museum Volunteers: Thinking of you (3.25) Royal Horticultural (3.50) 12 x 2nd class stamps for referee rsvps and volunteer cards (7.32) LESS privilege card discount (1.69),NEWS DEALERS AND NEWSSTANDS
26/07/2019,Public Health,AIR QUALITY NEWS,264.00,.00,264.00,1 x place to attend National Air Quality Conference - 12th November 2019 at Lord's Cricket Ground London @ cost of 264.00,DIRECT MARKETING-OTHER DIRECT MARKETERS/NOT ELSEW.
26/07/2019,Revenues Admin,SOUTHEND COUNTY,123.50,.00,123.50,Revenue Court Fee,FINES
26/07/2019,Saffron Walden Offices,WWW.IRONMONGERYDIRECT.,20.58,.00,20.58,Order for window weights � sliding sash windows.,"GLASS, PAINT, WALLPAPER STORES"
26/07/2019,Saffron Walden Offices,AO RETAIL LIMITED,157.50,31.50,189.00,Fridge in finance,HOUSEHOLD APPLIANCE STORES
27/07/2019,Housing Repair,B & Q 1184,14.00,.00,14.00,Purchasing electrical items for an Out of hours job,HOME SUPPLY WAREHOUSE STORES
29/07/2019,Benefits Admin,AMZNMktplace,27.99,.00,27.99,Stationery for Members HB Topic Paper,MISCELLANEOUS AND SPECIALTY RETAIL STORES
29/07/2019,Office Services,PAYPAL  GLOBALSHIP,21.68,.00,21.68,Replacement coffee machine parts,BUSINESS SERVICES-NOT ELSEWHERE CLASSIFIED
29/07/2019,Office Services,PAYPAL  CXTRADINGIN,25.10,.00,25.10,Replacement parts for coffee machine import tax,HOUSEHOLD APPLIANCE STORES
29/07/2019,Saffron Walden Day Centre,ALDI 76 776,44.20,.00,44.20,Food provisions for Saffron Walden Day Centre,"GROCERY STORES, SUPERMARKETS"
30/07/2019,Highway Ranger,RIDGEONS SAFFRON WALDE,136.08,27.22,163.30,1x direct to rust paint. 1x thinners and brush cleaner. 1x high gloss white paint. 1x trade undercoat. 1x pair of knee pads,"BUILDING MATERIALS, LUMBER STORES"
30/07/2019,Highway Ranger,KENT BLAXILL & CO,11.48,2.30,13.78,1 x metals primer 500ml,"BUILDING MATERIALS, LUMBER STORES"
30/07/2019,Saffron Walden Day Centre,WAITROSE 135,2.65,.00,2.65,Food provisions for Saffron Walden Day Centre,"GROCERY STORES, SUPERMARKETS"
31/07/2019,Housing Services,FACEBK CP29MMW3W2,21.00,.00,21.00,TP Facebook page,ADVERTISING SERVICES
01/08/2019,Museum S/W,AMZNMktplace,28.30,2.00,33.97,Cleaning alcohol for Wallace the lion and 6 x dimmable LED spotlights,MISCELLANEOUS AND SPECIALTY RETAIL STORES
01/08/2019,Saffron Walden Day Centre,WAITROSE 135,2.00,.00,2.00,Food provisions for Saffron Walden Day Centre,"GROCERY STORES, SUPERMARKETS"
05/08/2019,Highway Ranger,RIDGEONS SAFFRON WALDE,59.00,11.80,70.80,110v Makita grinder with case and blade,"BUILDING MATERIALS, LUMBER STORES"
05/08/2019,Saffron Walden Day Centre,ALDI 76 776,57.55,.55,58.10,Food provisions for Saffron Walden Day Centre,"GROCERY STORES, SUPERMARKETS"
06/08/2019,,DVLA VEHICLE TAX,"1,330.50",.00,"1,330.50",,GOVERNMENT SERVICES-NOT ELSEWHERE CLASSIFIED
06/08/2019,,DVLA VEHICLE TAX,262.50,.00,262.50,,GOVERNMENT SERVICES-NOT ELSEWHERE CLASSIFIED
06/08/2019,,DVLA VEHICLE TAX,262.50,.00,262.50,,GOVERNMENT SERVICES-NOT ELSEWHERE CLASSIFIED
06/08/2019,,DVLA VEHICLE TAX,"1,330.50",.00,"1,330.50",,GOVERNMENT SERVICES-NOT ELSEWHERE CLASSIFIED
06/08/2019,,DVLA VEHICLE TAX,262.50,.00,262.50,,GOVERNMENT SERVICES-NOT ELSEWHERE CLASSIFIED
06/08/2019,,DVLA VEHICLE TAX,262.50,.00,262.50,,GOVERNMENT SERVICES-NOT ELSEWHERE CLASSIFIED
06/08/2019,,DVLA VEHICLE TAX,262.50,.00,262.50,,GOVERNMENT SERVICES-NOT ELSEWHERE CLASSIFIED
06/08/2019,,DVLA VEHICLE TAX,262.50,.00,262.50,,GOVERNMENT SERVICES-NOT ELSEWHERE CLASSIFIED
06/08/2019,,DVLA VEHICLE TAX,"1,330.50",.00,"1,330.50",,GOVERNMENT SERVICES-NOT ELSEWHERE CLASSIFIED
06/08/2019,Grounds Maintenance,JAY & ROB'S WINDSCREEN,95.00,19.00,114.00,replacement window for ford fiesta,AUTOMOTIVE SERVICE SHOPS
06/08/2019,Museum S/W,WALDEN LOCAL,238.00,47.60,285.60,"Advert for Casual staff at Museum, over phone (urgent to meet deadline). ",MISCELLANEOUS PUBLISHING AND PRINTING
07/08/2019,Democratic Rep,TESCO STORES 6812,11.85,.00,11.85,Leader meeting,"GROCERY STORES, SUPERMARKETS"
07/08/2019,Legal Services,WWW.MONEYCLAIM.GOV,77.00,.00,77.00,Money Claim online - Warrant of control,GOVERNMENT SERVICES-NOT ELSEWHERE CLASSIFIED
07/08/2019,Museum S/W,WH SMITH,24.37,4.87,29.24,"3 packs of different sizes of black permanent markers, 2 packs of tie-on small card labels, for labelling objects, boxes, bags and other items at Shirehill store, and I pack post-it notes. For archaeology collections projects and general use in store",NEWS DEALERS AND NEWSSTANDS
07/08/2019,Museum S/W,MUSEUMS ASCTN,200.00,.00,200.00,"Institutional Subscription renewal 01/09/2019  31/08/2020 for Saffron Walden Museum membership. No VAT (further receipt requested, none provided)",ART DEALERS AND GALLERIES
07/08/2019,Saffron Walden Offices,PAYPAL  FIXEDASSETD,()24.95,.00,()24.95,Refund as goods never arrived,ELECTRICAL AND SMALL APPLIANCE REPAIR SHOPS
08/08/2019,,INSURE THE BOX LTDWWW.INSURETHE,()111.99,.00,()111.99,,
08/08/2019,Museum S/W,QD STORES,6.66,1.33,7.99,9 x kitchen rolls for cleaning Wallace the lion,DISCOUNT STORES
08/08/2019,Saffron Walden Day Centre,WAITROSE 135,5.00,.00,5.00,Food provisions for Saffron Walden Day Centre,"GROCERY STORES, SUPERMARKETS"
09/08/2019,Legal Services,WWW.CILEX LAW SC.AC.UK,63.00,.00,63.00,Civil Litigation Manual,"SCHOOLS, CORRESPONDENCE"
12/08/2019,Chief Executive,TESCO STORE 3108,14.25,.00,14.25,Split - Replacement mugs for meetings (25.22%),"GROCERY STORES, SUPERMARKETS"
12/08/2019,Democratic Rep,TESCO STORE 3108,42.25,.00,42.25,Split - ELectoral demo - food (74.78%),"GROCERY STORES, SUPERMARKETS"
12/08/2019,Highway Ranger,DVLA VEHICLE TAX,262.50,.00,262.50,VED,GOVERNMENT SERVICES-NOT ELSEWHERE CLASSIFIED
12/08/2019,Housing Repair,DVLA VEHICLE TAX,262.50,.00,262.50,VED,GOVERNMENT SERVICES-NOT ELSEWHERE CLASSIFIED
12/08/2019,Housing Repair,DVLA VEHICLE TAX,262.50,.00,262.50,VED,GOVERNMENT SERVICES-NOT ELSEWHERE CLASSIFIED
12/08/2019,Housing Repair,DVLA VEHICLE TAX,262.50,.00,262.50,VED,GOVERNMENT SERVICES-NOT ELSEWHERE CLASSIFIED
12/08/2019,Housing Sewage,DVLA VEHICLE TAX,262.50,.00,262.50,EN10 RXV VED,GOVERNMENT SERVICES-NOT ELSEWHERE CLASSIFIED
12/08/2019,Saffron Walden Day Centre,ALDI 76 776,71.87,.59,72.46,Food provisions for Saffron Walden Day Centre,"GROCERY STORES, SUPERMARKETS"
13/08/2019,Housing Services,SPRINGWELL NURSERY,300.00,.00,300.00,TP Garden Competition,LAWN AND GARDEN SUPPLY STORES
13/08/2019,Public Health,STK Shutterstock,29.00,2.36,29.00,1 x 364 day images on demand with 5 standard License Downloads @ 29.00 (Via Print-room) for Landlord Forum 2019 CCG,"COMMERCIAL ART, GRAPHICS, PHOTOGRAPHY"
13/08/2019,Thaxted Day Centre,ALDI 76 776,81.25,.15,81.40,Food for provision of meals at Thaxted Day Centre,"GROCERY STORES, SUPERMARKETS"
14/08/2019,Highway Ranger,RIDGEONS SAFFRON WALDE,80.27,16.06,96.33,1x ear defender.  2x direct to rust paint,"BUILDING MATERIALS, LUMBER STORES"
14/08/2019,Saffron Walden Offices,WWW.BUSHBOARD-WASHROOM,48.36,9.67,58.03,Locks for toilet doors,PLUMBING AND HEATING EQUIPMENT
14/08/2019,Takeley Day Centre,TESCO STORE 3130,6.00,.00,6.00,Food provisions for meals at Thaxted Day Centre,"GROCERY STORES, SUPERMARKETS"
14/08/2019,Thaxted Day Centre,ALDI 76 776,10.44,.00,10.44,Food for provision of meals at Thaxted Day Centre,"GROCERY STORES, SUPERMARKETS"
16/08/2019,Highway Ranger,KENT BLAXILL & CO,26.13,5.23,31.36,1x metals primer 500ml. 1x thinner 1l.,"BUILDING MATERIALS, LUMBER STORES"
19/08/2019,Thaxted Day Centre,ALDI 76 776,89.32,.00,89.32,Food for provision of meals at Thaxted Day Centre,"GROCERY STORES, SUPERMARKETS"
20/08/2019,Museum S/W,COLORCRAFT,13.50,2.70,16.20,Mounting card for Museum gallery display labels.,"ARTIST SUPPLY STORES, CRAFT SHOPS"
21/08/2019,Development Control,AMZNMktplace,147.35,29.47,176.82,"3 x USB C Hub
3 x waterproof cases for ipad's",MISCELLANEOUS AND SPECIALTY RETAIL STORES
21/08/2019,Saffron Walden Day Centre,ALDI 76 776,46.83,.79,47.62,Food provisions for Saffron Walden Day Centre,"GROCERY STORES, SUPERMARKETS"
22/08/2019,Grounds Maintenance,HOMEBASE LTD 643,12.87,.57,13.44,"2x rattan baskets, 1x pack of seed trays, 3x packs of seeds.",HOME SUPPLY WAREHOUSE STORES
22/08/2019,Legal Services,TESCO STORES 6812,20.60,.00,20.60,Catering for meeting with QC,"GROCERY STORES, SUPERMARKETS"
23/08/2019,Housing Repair,ARGOS RETAIL GROUP,109.99,.00,109.99,Table top oven,DISCOUNT STORES
23/08/2019,Museum S/W,WH SMITH,12.50,2.49,14.99,Set of coloured marker pens for use in brainstorming and focus group exercises on audience development,NEWS DEALERS AND NEWSSTANDS
24/08/2019,Housing Repair,AMZNMktplace,27.98,.00,27.98,Head lamps,MISCELLANEOUS AND SPECIALTY RETAIL STORES
24/08/2019,Thaxted Day Centre,HP INC UK LIMITED,2.91,.58,3.49,HP Ink Cartridge monthly cost,"COMPUTERS, COMPUTER PERIPHERAL EQUIPMENT, SOFTWARE"
27/08/2019,Museum S/W,WAITROSE 135,6.67,.00,6.67,Volunteer retirement tea party catering,"GROCERY STORES, SUPERMARKETS"
27/08/2019,Museum S/W,WAITROSE 101,5.50,.00,5.50,Volunteers Retirement gift: Rose in ceramic pot,"GROCERY STORES, SUPERMARKETS"
27/08/2019,Saffron Walden Day Centre,ALDI 76 776,72.52,2.28,74.80,Food provisions for Saffron Walden Day Centre,"GROCERY STORES, SUPERMARKETS"
27/08/2019,Thaxted Day Centre,ALDI 76 776,52.07,.00,52.07,Food for provision of meals at Thaxted Day Centre,"GROCERY STORES, SUPERMARKETS"
28/08/2019,Health & Safety,RIDGEONS SAFFRON WALDE,214.15,.00,214.15,wood for building stores at the dunmow depot,"BUILDING MATERIALS, LUMBER STORES"
28/08/2019,Highway Ranger,RIDGEONS SAFFRON WALDE,89.00,17.80,106.80,18v Dewalt brushless impact no batteries or charger.,"BUILDING MATERIALS, LUMBER STORES"
28/08/2019,Housing Services,ONE STOP 1460,40.00,.00,40.00,electric top up void,"GROCERY STORES, SUPERMARKETS"
28/08/2019,Property Services,ONE STOP 1460,30.00,.00,30.00,void electric top up,"GROCERY STORES, SUPERMARKETS"
28/08/2019,Refuse & Recycling,CHARTERED INST OF,52.91,.00,52.91,Membership to CIWM,PROFESSIONAL SERVICES-NOT ELSEWHERE CLASSIFIED
28/08/2019,Saffron Walden Day Centre,WAITROSE 135,4.00,.00,4.00,Food provisions for Saffron Walden Day Centre,"GROCERY STORES, SUPERMARKETS"
28/08/2019,Sheltered Housing,QD STORES,10.39,2.08,12.47,cork boards for Reynolds court,DISCOUNT STORES
29/08/2019,Housing Repair,BRITISH GAS ONLINE,20.00,.00,20.00,Pre-pay meter top up on void,"UTLTS-ELCTRC, GAS, HEATING OIL, SANITARY, WATER"
29/08/2019,Land Charges,Greater Anglia Trains,34.60,.00,34.60,Travel travel to LLC CON29 Training,PASSENGER RAILWAYS
29/08/2019,Saffron Walden Offices,RICS SUBS UK CYBS,660.00,.00,660.00,Royal institution of Chartered Surveyors - Assessment of Professional Competence for two Assistant Directors.,"ORGANIZATIONS, MEMBERSHIP-NOT ELSEWHERE CLASSIFIED"
29/08/2019,Sheltered Housing,TESCO STORE 2134,10.08,2.02,12.10,fly spray for bin rooms- Reynolds ct,"GROCERY STORES, SUPERMARKETS"
29/08/2019,Thaxted Day Centre,ALDI 76 776,37.21,.00,37.21,Food for provision of meals at Thaxted Day Centre,"GROCERY STORES, SUPERMARKETS"
30/08/2019,,WWW.LABELSANDTAGS.CO.U,72.00,.00,72.00,,MISCELLANEOUS PUBLISHING AND PRINTING
30/08/2019,Museum S/W,AMZNMktplace,23.32,4.67,27.99,New laminator to replace the broken one.,MISCELLANEOUS AND SPECIALTY RETAIL STORES
01/09/2019,Thaxted Day Centre,TESCO STORE 3130,120.77,.00,120.77,Food provisions for meals at Thaxted Day Centre,"GROCERY STORES, SUPERMARKETS"
02/09/2019,Housing Repair,BRITISH GAS ONLINE,20.00,.00,20.00,Paid for Electric on void meter,"UTLTS-ELCTRC, GAS, HEATING OIL, SANITARY, WATER"
03/09/2019,Health & Safety,TRAVIS PERKINS,421.66,84.33,505.99,wood for building ppe stores at the dunmow depot,"BUILDING MATERIALS, LUMBER STORES"
03/09/2019,Saffron Walden Day Centre,ALDI 76 776,74.23,.20,74.43,Food provisions for Saffron Walden Day Centre,"GROCERY STORES, SUPERMARKETS"
03/09/2019,Sheltered Housing,AMZNMktplace,9.99,2.00,11.99,LETTER BOX FOR REYNOLDS CT OFFICE,MISCELLANEOUS AND SPECIALTY RETAIL STORES
03/09/2019,Sheltered Housing,TESCO STORE 3130,12.50,2.50,15.00,PHONE CHARGER,"GROCERY STORES, SUPERMARKETS"
03/09/2019,Sheltered Housing,TRAVIS PERKINS,131.14,26.23,157.37,GRAVEL AND MEMBRANE FOR ALAN HASLER HSE,"BUILDING MATERIALS, LUMBER STORES"
03/09/2019,Sheltered Housing,HOMEBASE LTD 643,41.61,8.32,49.93,WATER BUTT AND HOSE REEL FOR A/H AND ALEXIA,HOME SUPPLY WAREHOUSE STORES
04/09/2019,Highway Ranger,RIDGEONS SAFFRON WALDE,15.96,3.19,19.15,1x brush mate vapoue pad.  1x  white spirit.,"BUILDING MATERIALS, LUMBER STORES"
04/09/2019,Land Charges,TFL TRAVEL CH,4.80,.00,4.80,Tube travel to Training LLC,"TRANSPRTN-SUBRBN & LOCAL COMTR PSNGR, INCL FERRIES"
04/09/2019,Legal Services,GA AUDLEY STORTFORD ST,9.50,.00,9.50,Car park at Station training LLC,AUTOMOBILE PARKING LOTS AND GARAGES
04/09/2019,Street Cleansing,RIDGEONS SAFFRON WALDE,36.51,7.30,43.81,2x  100x2400 treated carcassing machined. 1x matt emulsion.,"BUILDING MATERIALS, LUMBER STORES"
04/09/2019,Thaxted Day Centre,TESCO STORE 3130,11.29,.00,11.29,Food provisions for meals at Thaxted Day Centre,"GROCERY STORES, SUPERMARKETS"
05/09/2019,,DVLA VEHICLE TAX,167.50,.00,167.50,,GOVERNMENT SERVICES-NOT ELSEWHERE CLASSIFIED
05/09/2019,,DVLA VEHICLE TAX,617.50,.00,617.50,,GOVERNMENT SERVICES-NOT ELSEWHERE CLASSIFIED
05/09/2019,Museum S/W,MARAGON,25.09,5.02,30.11,Alginate casting medium for creating fingers for death masks to diaries exhibition,"ARTIST SUPPLY STORES, CRAFT SHOPS"
05/09/2019,Refuse & Recycling,WWW.TCFIXINGS.CO.UK,9.32,1.86,11.18,Padlock For Jet Wash Fuel Tank Shire Hill,"BUILDING MATERIALS, LUMBER STORES"
05/09/2019,Saffron Walden Offices,WWW.SLIDEWARDROBESDIR,785.09,.00,785.09,Doors sundry deter,"EQUIP, FURNITURE, HOME FURNSHNGS STRS (EXCPT APPL)"
06/09/2019,Museum S/W,Chelmsford  Parking,5.50,.00,5.50,"Baddow Road Car Park, for Museums Essex meeting at Essex Records Office. No VAT",AUTOMOBILE PARKING LOTS AND GARAGES
07/09/2019,Grounds Maintenance,GEORGE BROWNS,73.75,14.75,88.50,"18"" guide bar and 18"" chain for bar. for Sthil 261 chain saw",MISCELLANEOUS AND SPECIALTY RETAIL STORES
07/09/2019,Museum S/W,WAITROSE 135,3.90,.00,3.90,Large tomatoes to mummify for school session - 96 children so 12 large tomatoes needed. zero VAT rated,"GROCERY STORES, SUPERMARKETS"
08/09/2019,Museum S/W,Amazon.co.uk MA2NP6VQ4,10.70,2.14,12.84,Brown paper tape for BFG ears activity,DIRECT MARKETING-OTHER DIRECT MARKETERS/NOT ELSEW.
08/09/2019,Sheltered Housing,Amazon.co.uk MA7SE2PB4,27.42,5.48,32.90,FOLDING TROLLEY CARTS,DIRECT MARKETING-OTHER DIRECT MARKETERS/NOT ELSEW.
09/09/2019,Chairman,TESCO STORE 3108,36.44,.00,36.44,Catering for the Emergency Services flag raising event with senior officers from the Police and Fire Service in attendance,"GROCERY STORES, SUPERMARKETS"
09/09/2019,Thaxted Day Centre,ALDI 76 776,59.20,.00,59.20,Food for provision of meals at Thaxted Day Centre,"GROCERY STORES, SUPERMARKETS"
10/09/2019,Housing Services,HOMEBASE LTD 643,41.63,8.32,49.95,TABLE,HOME SUPPLY WAREHOUSE STORES
10/09/2019,Refuse & Recycling,WWW.TCFIXINGS.CO.UK,33.29,.00,33.29,1 x pair safety boot size 9,"BUILDING MATERIALS, LUMBER STORES"
10/09/2019,Sheltered Housing,Amazon.co.uk MA7BM8534,123.80,247.84,371.64,4 extra chairs for THE CLOSE communal lounge - Invoice sent for each chair but could only attach one invoice,DIRECT MARKETING-OTHER DIRECT MARKETERS/NOT ELSEW.
10/09/2019,Street Cleansing,RIDGEONS SAFFRON WALDE,91.32,18.27,109.59,"6x 2440x1220 6mm MDF.  48xrfp 19x25 par premier 70% pefc certified.  2x superscrews plus 6 x 3/4 "" counter sunk poz wood screws","BUILDING MATERIALS, LUMBER STORES"
11/09/2019,,MEMORY WALK,1.80,.00,1.80,,"ORGANIZATIONS, CHARITABLE AND SOCIAL SERVICES"
11/09/2019,Sheltered Housing,QD STORES,7.99,2.00,9.99,STATIONARY AND CLEANING MATERIALS FOR L/L,DISCOUNT STORES
12/09/2019,Building Surveying,Trainline.com,238.40,.00,238.40,3 x train tickets to Wolverhampton. 2 x apprentices to enrol 1 x manager to understand the commitment and requirement of the apprentices.,PASSENGER RAILWAYS
12/09/2019,Revenues Admin,SOUTHEND COUNTY,185.50,.00,185.50,Revenue Court Fee,FINES
16/09/2019,Building Surveying,NOVOTEL WOLVERHAMPTON,223.70,44.75,268.45,Three rooms to attend apprentice enrolment session,"LODGING-HOTELS,MOTELS,RESORTS-NOT CLASSIFIED"
16/09/2019,Housing Services,C I H,202.50,40.50,243.00,CIH Eastern Conference,"ASSOCIATIONS-CIVIC, SOCIAL, AND FRATERNAL"
16/09/2019,Museum S/W,AMZNMktplace,8.47,2.12,10.59,"coloured tape for use in the exhibition ""from death masks to diaries""",MISCELLANEOUS AND SPECIALTY RETAIL STORES
16/09/2019,Saffron Walden Day Centre,ALDI 76 776,25.65,.00,25.65,Food for provision of meals at Saffron Walden Day Centre,"GROCERY STORES, SUPERMARKETS"
16/09/2019,Sheltered Housing,SumUp   Oven Bright,45.00,9.00,54.00,OVEN CLEAN FOR PRIORSWOOD CT KITCHEN,"CLEANING, GARMENT, AND LAUNDRY SERVICES"
17/09/2019,Housing Services,IH  DEVELOPMENT AWARDS,"2,350.00",470.00,"2,820.00",CIH awards,"THEATRICAL PRODUCERS(EXCL MOTION PIX),TICKET AGNCY"
17/09/2019,Museum S/W,AMZNMKTPLACE AMAZON.CO,25.93,5.19,31.12,A3 sticker sheets for text panels for exhibition and display,MISCELLANEOUS AND SPECIALTY RETAIL STORES
17/09/2019,Museum S/W,Amazon.co.uk MA9E98SV4,9.14,1.83,10.97,mirror for exhibition,DIRECT MARKETING-OTHER DIRECT MARKETERS/NOT ELSEW.
17/09/2019,Museum S/W,Greater Anglia Trains,57.60,.00,57.60,Train ticket for *** to attend MA confrence,PASSENGER RAILWAYS
17/09/2019,Museum S/W,AIRBNB   HMANR4F23M,53.97,1.23,55.20,AIR BNB for *** to attend MA conference in Brighton - VAT payable on service charge only,"LODGING-HOTELS,MOTELS,RESORTS-NOT CLASSIFIED"
17/09/2019,Museum S/W,Amazon.co.uk MA54L5SY4,20.92,4.18,25.10,foam board for exhibition,DIRECT MARKETING-OTHER DIRECT MARKETERS/NOT ELSEW.
17/09/2019,Museum S/W,LOCKSTOCK & BARREL,22.14,4.43,26.57,New padlock for Museum drive gates after contractors cut off old one.,HARDWARE STORES
17/09/2019,Museum S/W,MUSEUMS ASCTN,130.00,.00,130.00,Discount MA Conference fee,ART DEALERS AND GALLERIES
17/09/2019,Saffron Walden Day Centre,WAITROSE 135,14.79,.00,14.79,Food provisions for Saffron Walden Day Centre,"GROCERY STORES, SUPERMARKETS"
18/09/2019,Benefits Admin,PREMIER INN,249.50,.00,249.50,Overnight accommodation for IRRV Annual Conference,PREMIER INN
18/09/2019,Communications,HOTEL IBIS,118.32,29.58,147.90,Accommodation for *** at LG Comms Academy,HOTEL IBIS
18/09/2019,Development Control,TRIP.COM 10452581623,22.10,.00,22.10,Train ticket for career grade planner to travel to university.,TRAVEL AGENCIES AND TOUR OPERATORS
18/09/2019,Development Control,NATIONAL RAILCARD,30.00,.00,30.00,Rail card for apprentice to travel to and from their course at a reduced rate.,PASSENGER RAILWAYS
18/09/2019,Health & Safety,WICKES BISHOP'S STORTF,4.63,.00,4.63,electrical socket and cable pins,"BUILDING MATERIALS, LUMBER STORES"
18/09/2019,Housing Repair,CO-OP GROUP 310462,10.00,.00,10.00,Pre-pay meter top up on void,"GROCERY STORES, SUPERMARKETS"
18/09/2019,Museum S/W,AMZNMktplace,9.98,2.00,11.98,coloured tape for exhibition,MISCELLANEOUS AND SPECIALTY RETAIL STORES
18/09/2019,Museum S/W,MR PLASTIC ONLINE,29.10,5.82,34.92,Perspex for exhibition,"BUILDING MATERIALS, LUMBER STORES"
18/09/2019,Museum S/W,AMZNMktplace,6.16,1.23,7.39,OHP paper for printing photos for exhibition,MISCELLANEOUS AND SPECIALTY RETAIL STORES
18/09/2019,Revenues Admin,WWW.GOV.UK,4.50,.00,4.50,Probate confirmation,PROFESSIONAL SERVICES-NOT ELSEWHERE CLASSIFIED
19/09/2019,Museum S/W,MEDLOCK ELECTRICAL,42.00,8.40,50.40,GU10 spotlights and 5ft tubes for Museum galleries,ELECTRICAL PARTS AND EQUIPMENT
19/09/2019,Saffron Walden Day Centre,WAITROSE 135,2.60,.00,2.60,Food provisions for Saffron Walden Day Centre,"GROCERY STORES, SUPERMARKETS"
20/09/2019,Thaxted Day Centre,TESCO STORE 3130,48.23,.00,48.23,Food provisions for meals at Thaxted Day Centre,"GROCERY STORES, SUPERMARKETS"
20/09/2019,Thaxted Day Centre,HP INC UK LIMITED,2.91,.58,3.49,HP Instant Ink Service for printer at Thaxted Day Centre,"COMPUTERS, COMPUTER PERIPHERAL EQUIPMENT, SOFTWARE"
21/09/2019,Housing Services,TESCO STORE 2574,125.00,.00,125.00,Tenant Participation events,"GROCERY STORES, SUPERMARKETS"
22/09/2019,Saffron Walden Day Centre,ALDI 76 776,80.63,1.41,82.04,Food provisions for Saffron Walden Day Centre,"GROCERY STORES, SUPERMARKETS"
22/09/2019,Thaxted Day Centre,ALDI 76 776,6.63,.33,6.96,Food provisions for meals at Thaxted Day Centre,"GROCERY STORES, SUPERMARKETS"
22/09/2019,Thaxted Day Centre,TESCO STORE 3130,122.90,.00,122.90,Food provisions for meals at Thaxted Day Centre,"GROCERY STORES, SUPERMARKETS"
23/09/2019,Public Health (Commercial Team),SAFETYCULTURE,716.45,.00,716.45,Payment for: Early Renewal - iAuditor - Organisation Premium Annual (10 Oct 2019 - 10 Oct 2020) - Annual User Seats (Premium): Early Renewal of 6 annual seats at cost of 716.45 ($864.00) EH Commercial Team Ref: TN,COMPUTER SOFTWARE STORES
23/09/2019,Thaxted Day Centre,ALDI 76 776,5.70,.00,5.70,Food provisions for meals at Thaxted Day Centre,"GROCERY STORES, SUPERMARKETS"
25/09/2019,Health & Safety,B & Q 1198,42.37,.00,42.37,wood for ppe stores unit,HOME SUPPLY WAREHOUSE STORES
25/09/2019,Homelessness,TRAVELODGE,64.16,12.83,76.99,Homeless TA,TRAVELODGE
25/09/2019,Museum S/W,MEDLOCK ELECTRICAL,19.75,3.95,23.70,5x circular tube lights for Museum galleries,ELECTRICAL PARTS AND EQUIPMENT
25/09/2019,Revenues Admin,SOUTHEND COUNTY,122.50,.00,122.50,Revenue Court Fee,FINES
25/09/2019,Vehicle Maintenance,THE GOLD STREET SURGER,138.00,.00,138.00,LGV MEDICAL,"DOCTORS, (NOT ELSEWHERE CLASSIFIED)"
26/09/2019,Development Control,Trainline,22.79,.00,22.79,Train ticket for Career Grade Planner to travel to University - 03/10/2019,PASSENGER RAILWAYS
26/09/2019,Highway Ranger,RIDGEONS SAFFRON WALDE,16.70,3.34,20.04,"super screws plus 6 x 3/4"" clam 200 countersunk pozi wood screws.","BUILDING MATERIALS, LUMBER STORES"
26/09/2019,Housing Repair,BRITISH GAS ONLINE,10.00,.00,10.00,Pre-pay meter top up on void,"UTLTS-ELCTRC, GAS, HEATING OIL, SANITARY, WATER"
26/09/2019,Housing Repair,BRITISH GAS ONLINE,15.00,.00,15.00,Pre-pay meter top up on void,"UTLTS-ELCTRC, GAS, HEATING OIL, SANITARY, WATER"
26/09/2019,Planning Policy,WWW.TCPA.ORG.UK,300.00,60.00,360.00,"Officer and Leader to attend TCPA Annual Conference: 'Facing the Future', 21st November

Code needs changing to GGP001","ORGANIZATIONS, MEMBERSHIP-NOT ELSEWHERE CLASSIFIED"
26/09/2019,Sheltered Housing,HOMEBASE LTD 643,14.00,2.80,16.80,woodstain for Alexia House,HOME SUPPLY WAREHOUSE STORES
27/09/2019,Communications,STK Shutterstock,29.00,2.36,29.00,Images for use in Council Tax flyer,"COMMERCIAL ART, GRAPHICS, PHOTOGRAPHY"
29/09/2019,Saffron Walden Day Centre,ALDI 76 776,81.33,1.58,82.91,Food provisions for Saffron Walden Day Centre,"GROCERY STORES, SUPERMARKETS"
29/09/2019,Thaxted Day Centre,TESCO STORE 3130,88.44,.00,88.44,Food provisions for meals at Thaxted Day Centre,"GROCERY STORES, SUPERMARKETS"
29/09/2019,Thaxted Day Centre,ALDI 76 776,41.29,1.36,42.65,Food provisions for meals at Thaxted Day Centre,"GROCERY STORES, SUPERMARKETS"
30/09/2019,Sheltered Housing,Amazon.co.uk MO5HK8FK4,15.82,3.16,18.98,LAPTOP STAND - STAFF,DIRECT MARKETING-OTHER DIRECT MARKETERS/NOT ELSEW.
01/10/2019,Communications,LINKEDIN-499 3098484,282.17,56.43,338.60,Advertising for Communications Officer job posting.,DIRECT MARKETING-CONTINUITY/SUBSCRIPTION MERCHANTS
01/10/2019,Health & Safety,D4DRIVERS,50.00,.00,50.00,medical for hgv driving Andrew mills,"HEALTH PRACTITIONERS, MEDICAL SRVCS-NOT ELSEWHERE"
01/10/2019,Health & Safety,D4DRIVERS,50.00,.00,50.00,medical for hgv driving ryan nash,"HEALTH PRACTITIONERS, MEDICAL SRVCS-NOT ELSEWHERE"
01/10/2019,Refuse & Recycling,WWW.3.HILTON.COM,16.00,.00,16.00,Parking at Conference,"LODGING-HOTELS,MOTELS,RESORTS-NOT CLASSIFIED"
02/10/2019,Legal Services,CHARTERED INSTITUTE OF,172.50,.00,172.50,Booking of Civil Litigation Exam - Level 6 with Cilex,"SCHOOLS, BUSINESS AND SECRETARIAL"
02/10/2019,Legal Services,WWW.MONEYCLAIM.GOV,105.00,.00,105.00,Issuing proceedings at County Court Money Claims Center,GOVERNMENT SERVICES-NOT ELSEWHERE CLASSIFIED
02/10/2019,Museum S/W,SPECIALIST CRAFTS LTD,44.33,8.87,53.20,materials for printing session with trefoil guild + can be used in aft classes next year,"ARTIST SUPPLY STORES, CRAFT SHOPS"
02/10/2019,Property Services,SAFETYCULTURE,383.90,.00,383.90,Software subscription,COMPUTER SOFTWARE STORES
02/10/2019,Refuse & Recycling,COTSWOLD MEDICALS LTD,196.67,39.33,236.00,4 x Medicals,"DOCTORS, (NOT ELSEWHERE CLASSIFIED)"
02/10/2019,Sheltered Housing,BATTERY STATION,20.29,3.47,23.76,batteries for Sheltered/Lifeline,HOUSEHOLD APPLIANCE STORES
02/10/2019,Voids Programme,AMZNMKTPLACE AMAZON.CO,20.25,.00,20.25,Lampshades for temp voids,MISCELLANEOUS AND SPECIALTY RETAIL STORES
03/10/2019,Health & Safety,D4DRIVERS,50.00,.00,50.00,medical for hgv driving paul lawrence,"HEALTH PRACTITIONERS, MEDICAL SRVCS-NOT ELSEWHERE"
03/10/2019,Legal Services,WWW.MONEYCLAIM.GOV,25.00,.00,25.00,Issuing proceedings at County Court Money Claim Centre,GOVERNMENT SERVICES-NOT ELSEWHERE CLASSIFIED
03/10/2019,Saffron Walden Day Centre,WAITROSE 135,3.49,.00,3.49,Food provisions for Saffron Walden Day Centre,"GROCERY STORES, SUPERMARKETS"
04/10/2019,Street Cleansing,WWW.TCFIXINGS.CO.UK,24.52,4.90,29.42,2 x Drill bITS FOR wORKSHOP,"BUILDING MATERIALS, LUMBER STORES"
06/10/2019,Saffron Walden Day Centre,ALDI 76 776,109.96,.00,109.96,Food provisions for Saffron Walden Day Centre,"GROCERY STORES, SUPERMARKETS"
06/10/2019,Thaxted Day Centre,TESCO STORE 3130,92.76,.00,92.76,Food provisions for meals at Thaxted Day Centre,"GROCERY STORES, SUPERMARKETS"
07/10/2019,Development Control,Virgin Trains,22.10,.00,22.10,Train ticket for career grade planner to travel to university.,PASSENGER RAILWAYS
08/10/2019,Development Control,FOCUS PROJECT MGMNT (E,549.00,109.80,658.80,"Needs to have cost centre code to GGP001

On-line course for Microsoft Project 2016 Introduction","SCHOOLS, BUSINESS AND SECRETARIAL"
08/10/2019,Green Waste,DVLA VEHICLE TAX,722.50,.00,722.50,VED,GOVERNMENT SERVICES-NOT ELSEWHERE CLASSIFIED
08/10/2019,Health & Safety,WAVIANBLUE.COM,52.16,.00,52.16,new dispensing handle for the ad blue pump,"COMP PROGRAMING,DATA PRCSNG,INTGRTD SYS DSGN SRVS"
08/10/2019,Museum S/W,AMZNMktplace,14.77,2.98,17.75,alginate for finger casts,MISCELLANEOUS AND SPECIALTY RETAIL STORES
09/10/2019,Museum S/W,PAYPAL  VALWOODCROF,12.99,.00,12.99,Large Perspex strips for use in safe and secure display of objects.,MISCELLANEOUS AND SPECIALTY RETAIL STORES
09/10/2019,Museum S/W,PAYPAL  VALWOODCROF,7.99,.00,7.99,Perspex strips for safe and secure display of objects.,MISCELLANEOUS AND SPECIALTY RETAIL STORES
09/10/2019,Museum S/W,AMZ Amazon US,()3.32,.00,()3.32,"Import Fee Deposit Refund from Amazon US because export fee was reduced, for order 206-9088749-5665952 Tyvek Wristbands (original order in May 2019)",MISCELLANEOUS AND SPECIALTY RETAIL STORES
09/10/2019,Public Health (Commercial Team),ITUNES.COM/BILL,39.99,8.00,47.99,"Charge for PDF expert App. for Ipads to edit,annotate and sign PDF docs. Inv 187294983117",RECORD SHOPS
10/10/2019,Border Inspection,TRANSPACK LIMITED,32.31,6.46,38.77,Cost of 500 Polythene bags for samples @27.70    Postage @ 6.00    5% online discount @1.39,MISCELLANEOUS AND SPECIALTY RETAIL STORES
10/10/2019,Border Inspection,AMZNMKTPLACE AMAZON.CO,4.98,1.00,5.98,Cost of 100 brown paper bags for samples of melamine. @4.98,MISCELLANEOUS AND SPECIALTY RETAIL STORES
10/10/2019,Grounds Maintenance,STATION COACH WORK,89.86,17.98,107.84,compensation/repair payment for Suzuki Swift. damage caused by rural grass cutting route whilst attending site.,AUTOMOTIVE BODY REPAIR SHOPS
10/10/2019,Museum S/W,AMZNMktplace,6.66,1.33,7.99,"Draft excluder- dustproofing brush for World Cultures walk-in display case, reduce dust ingress damage to collections",MISCELLANEOUS AND SPECIALTY RETAIL STORES
10/10/2019,Museum S/W,AMZNMktplace,8.32,1.67,9.99,"hooks specially designed for suspended ceilings, for use in temporary exhibitions.",MISCELLANEOUS AND SPECIALTY RETAIL STORES
10/10/2019,Museum S/W,WWW.EFOAM.CO.UK,81.63,16.33,97.96,"3 x large Plastazote foam sheets for mounting of Egyptian Mummy case to wall for exhibition ""From Death Masks to Diaries"" + for use for safe object storage else where in the Museum.",BUSINESS SERVICES-NOT ELSEWHERE CLASSIFIED
10/10/2019,Saffron Walden Day Centre,BURTON AND SON,5.99,.00,5.99,Food provisions for Saffron Walden Day Centre,"FREEZER, LOCKER MEAT PROVISIONERS"
11/10/2019,Chief Executive,TESCO STORE 3108,58.00,.00,58.00,Catering for the LGA Independents meeting hosted at UDC (to be recharged),"GROCERY STORES, SUPERMARKETS"
11/10/2019,Housing Repair,AMZNMktplace,9.75,.00,9.75,expandable sleeving cable- hard to get hold of anywhere else,MISCELLANEOUS AND SPECIALTY RETAIL STORES
11/10/2019,Museum S/W,Amazon.co.uk MO83R1EP4,12.07,2.42,14.49,"Dustproof mat for World Cultures walk-in display case, to reduce dust ingress damage to collections",DIRECT MARKETING-OTHER DIRECT MARKETERS/NOT ELSEW.
13/10/2019,Thaxted Day Centre,TESCO STORE 3130,150.00,.00,150.00,Food provisions for meals at Thaxted Day Centre,"GROCERY STORES, SUPERMARKETS"
14/10/2019,Planning Policy,Amazon.co.uk MO0PG8PF4,25.00,.00,25.00,Amazon gift voucher for the Passivhaus resident that is helping us with filming.,DIRECT MARKETING-OTHER DIRECT MARKETERS/NOT ELSEW.
14/10/2019,Saffron Walden Day Centre,WAITROSE 135,16.24,.00,16.24,Food provisions for Saffron Walden Day Centre,"GROCERY STORES, SUPERMARKETS"
14/10/2019,Voids Programme,AMZNMKTPLACE AMAZON.CO,()20.25,.00,()20.25,Lampshades for temp to small so returned,MISCELLANEOUS AND SPECIALTY RETAIL STORES
15/10/2019,Museum S/W,HOMEBASE LTD 643,4.92,.98,5.90,Flower pots for Museum kitchen,HOME SUPPLY WAREHOUSE STORES
16/10/2019,Development Control,Virgin Trains,22.10,.00,22.10,University travel costs,PASSENGER RAILWAYS
16/10/2019,Development Control,NATIONAL RAILCARD,30.00,.00,30.00,Rail card to enable reduced rail travel for career grade planner to travel to university.,PASSENGER RAILWAYS
16/10/2019,Voids Programme,SEALEY PRODUCTS,3.58,.00,3.58,lead to one of our tools that we could only get in one place,ELECTRICAL PARTS AND EQUIPMENT
17/10/2019,Democratic Rep,WWW.TCPA.ORG.UK,180.00,.00,180.00,Leader attendance at Annual Conference,"ORGANIZATIONS, MEMBERSHIP-NOT ELSEWHERE CLASSIFIED"
17/10/2019,Revenues Admin,WWW.GOV.UK,1.50,.00,1.50,Probate Fee,PROFESSIONAL SERVICES-NOT ELSEWHERE CLASSIFIED
17/10/2019,Saffron Walden Day Centre,WAITROSE 135,10.19,.00,10.19,Food provisions for Saffron Walden Day Centre,"GROCERY STORES, SUPERMARKETS"
18/10/2019,Museum S/W,EB  SHARE CONFERENCE-G,20.83,4.17,25.00,"Fee to attend SHARE Museums East of England Regional Conference - Generation Next: flourishing museums, brighter futures"" (Monday, 18 November 2019, North Herts Museum)",BUSINESS SERVICES-NOT ELSEWHERE CLASSIFIED
18/10/2019,Museum S/W,QD STORES,6.63,1.33,7.96,24 glass tumblers for Museum ( 4 packs of 6) fro water for meetings and general use,DISCOUNT STORES
18/10/2019,Revenues Admin,SOUTHEND COUNTY,120.50,.00,120.50,Revenue Court Fees,FINES
19/10/2019,Thaxted Day Centre,HP INC UK LIMITED,2.91,.58,3.49,Supply of printer ink for Thaxted Day Centre,"COMPUTERS, COMPUTER PERIPHERAL EQUIPMENT, SOFTWARE"
20/10/2019,Thaxted Day Centre,TESCO STORE 3130,119.99,.00,119.99,Food provisions for meals at Thaxted Day Centre,"GROCERY STORES, SUPERMARKETS"
21/10/2019,Community Safety Partnership,PARTICIPANT UK LTD,295.00,59.00,354.00,Domestic Abuse training for safeguarding Officer,COMPUTER NETWORK/INFORMATION SERVICES
21/10/2019,Democratic Rep,TESCO STORE 3108,77.07,.00,77.07,Cabinet Away Day,"GROCERY STORES, SUPERMARKETS"
21/10/2019,Highway Ranger,RIDGEONS SAFFRON WALDE,26.68,5.34,32.02,4x aerosol black metal paint.,"BUILDING MATERIALS, LUMBER STORES"
21/10/2019,Human Resources,Amazon.co.uk MO8JW9VS4,112.20,.00,112.20,ILM5 training books,DIRECT MARKETING-OTHER DIRECT MARKETERS/NOT ELSEW.
21/10/2019,Saffron Walden Day Centre,WAITROSE 135,36.92,.00,36.92,Food provisions for Saffron Walden Day Centre,"GROCERY STORES, SUPERMARKETS"
22/10/2019,Saffron Walden Day Centre,WAITROSE 135,11.02,.00,11.02,Food provisions for Saffron Walden Day Centre,"GROCERY STORES, SUPERMARKETS"
23/10/2019,Development Control,Virgin Trains,22.10,.00,22.10,University travel costs,PASSENGER RAILWAYS
23/10/2019,Highway Ranger,RIDGEONS SAFFRON WALDE,12.23,2.45,14.68,underground pipe 110mm x 3M,"BUILDING MATERIALS, LUMBER STORES"
23/10/2019,Saffron Walden Offices,KNOWLEDGETRAIN.CO.UK,238.80,.00,238.80,Training - PRINCE2 Training Course,SCHOOLS & EDUCATIONAL SVC-NOT ELSEWHERE CLASSIFIED
23/10/2019,Sheltered Housing,HOMEBASE LTD 643,10.83,2.17,13.00,LAMB AND BULBS FOR LIFELINE CLEANING,HOME SUPPLY WAREHOUSE STORES
23/10/2019,Sheltered Housing,HOMEBASE LTD 643,24.71,4.94,29.65,"SUNDRIES FOR SHELTERED SITE, PLUS A DRILL BIT",HOME SUPPLY WAREHOUSE STORES
23/10/2019,Sheltered Housing,AMZNMktplace,42.49,8.50,50.99,WATER BOILER -NORMAN CT,MISCELLANEOUS AND SPECIALTY RETAIL STORES
24/10/2019,Democratic Rep,WWW.GEAR4MUSIC.COM,8.98,.00,8.98,Music Stand Light - Elections,"MUSIC STORES-INSTRUMENTS, PIANOS, SHEET MUSIC"
24/10/2019,Development Control,NCP LTD,7.00,.00,7.00,University travel costs,AUTOMOBILE PARKING LOTS AND GARAGES
24/10/2019,Highway Ranger,GEORGE BROWNS,10.30,2.06,12.36,1/2 drive bit set 8pc,MISCELLANEOUS AND SPECIALTY RETAIL STORES
24/10/2019,Saffron Walden Offices,PEOPLECERT,83.00,.00,83.00,PRINCE2 Training - Option for Practitioner Re-sit - otherwise it would have been 380,SCHOOLS & EDUCATIONAL SVC-NOT ELSEWHERE CLASSIFIED
25/10/2019,Building Surveying,HTTPS://WWW.ESTORE.WLV,247.50,.00,247.50,Accommodation and food for Trainee Building Control Officer to attend a residential course as part of their apprenticeship training.,"COLLEGES, UNIV, PRO SCHOOLS, JUNIOR COLLEGES"
25/10/2019,Museum S/W,WWW.TCFIXINGS.CO.UK,17.60,3.53,21.13,Fixing equipment for hanging paintings in the Ceramics gallery,"BUILDING MATERIALS, LUMBER STORES"
26/10/2019,Thaxted Day Centre,TESCO STORE 3130,100.00,.00,100.00,Food provisions for meals at Thaxted Day Centre,"GROCERY STORES, SUPERMARKETS"
28/10/2019,,HTTPS://WWW.ESTORE.WLV,52.20,.00,52.20,,"COLLEGES, UNIV, PRO SCHOOLS, JUNIOR COLLEGES"
28/10/2019,Sheltered Housing,HOMEBASE LTD 643,4.79,.96,5.75,FILLER FOR KEY SAFE INSTALLATION,HOME SUPPLY WAREHOUSE STORES
28/10/2019,Sheltered Housing,HOMEBASE LTD 643,6.17,1.23,7.40,DRILL BITS FOR KEY SAFE INSTALLATION,HOME SUPPLY WAREHOUSE STORES
29/10/2019,Museum S/W,QD STORES,5.76,1.17,6.93,Materials for craft activities,DISCOUNT STORES
29/10/2019,Sheltered Housing,CARPETRIGHT 1205,215.78,43.16,258.94,CARPET FOR GUEST ROOM AND VINYL FOR NEWCROFT SHED,FLOOR COVERING STORES
30/10/2019,Benefits Admin,NCP COLCHESTER OSBORNE,11.20,.00,11.20,"Benefit Manager Car Parking at Colchester for DWP LA Engagement Event.
No receipt given on exit from car park.",AUTOMOBILE PARKING LOTS AND GARAGES
30/10/2019,Sheltered Housing,B AND M RETAIL,23.94,4.79,28.73,SHELTERED DIARIES,DISCOUNT STORES
30/10/2019,Sheltered Housing,AMZNMktplace,3.79,.00,22.77,PET LAUNDRY BAG FOR SHELTERED SITES,MISCELLANEOUS AND SPECIALTY RETAIL STORES
30/10/2019,Sheltered Housing,Amazon.co.uk N50497FH5,100.00,.00,100.00,VOUCHER FOR SHELTERED RESIDENTS USE OF ELECTRICITY. NOT VAT APPLICABLE,DIRECT MARKETING-OTHER DIRECT MARKETERS/NOT ELSEW.
31/10/2019,Human Resources,AMZ Amazon.co.uk,()12.70,.00,()12.70,Credit for returned Books ILM5 training,DIRECT MARKETING-OTHER DIRECT MARKETERS/NOT ELSEW.
31/10/2019,Saffron Walden Day Centre,WAITROSE 135,13.28,.00,13.28,Food provisions for Saffron Walden Day Centre,"GROCERY STORES, SUPERMARKETS"
01/11/2019,Museum S/W,RIDGEONS SAFFRON WALDE,50.37,10.08,60.45,Paint and filler for new exhibition,"BUILDING MATERIALS, LUMBER STORES"
04/11/2019,Housing Services,THE EIGHT BELLS,120.00,.00,120.00,Tenant Forum/Reg Panel Xmas lunch,"EATING PLACES, RESTAURANTS"
04/11/2019,Sheltered Housing,HOMEBASE LTD 643,62.12,12.42,74.54,paint brushes sandpaper,HOME SUPPLY WAREHOUSE STORES
05/11/2019,Benefits Admin,AMZNMKTPLACE AMAZON.CO,10.82,2.17,12.99,Laptop Sleeve,MISCELLANEOUS AND SPECIALTY RETAIL STORES
05/11/2019,Border Inspection,ETI LTD,32.00,6.40,38.40,Cost of 1 x penetration probe for food sampling purpose at the BIP @ 30. Delivery @ 2.00,COMPUTER SOFTWARE STORES
05/11/2019,Border Inspection,WWW.ARGOS.CO.UK,33.94,.00,33.94,Cost of 1 x cool box for holding/storing food samples at the BIP @ 29.99 Delivery@ 3.95.,DISCOUNT STORES
05/11/2019,Border Inspection,FOOD SAFETY DIRECT,20.99,4.20,25.19,Cost of 20 disposable white coats for sampling purposes at the BIP @ 90p each. Delivery @2.99,CHEMICALS/ALLIED PRODUCTS NOT ELSEWHERE CLASSIFIED
05/11/2019,Community Safety Partnership,HART'S BOOKS,265.62,.00,265.62,'Its a no money' books for primary schools,BOOK STORES
05/11/2019,Sheltered Housing,WWW.SHEDSTORE.CO.UK,199.99,40.00,239.99,STORAGE SHED FOR REYNOLDS CT RESIDENTS,"BUILDING MATERIALS, LUMBER STORES"
06/11/2019,Community Safety Partnership,HART'S BOOKS,83.88,.00,83.88,'Its no money' books for primary schools,BOOK STORES
06/11/2019,Democratic Representation,TESCO STORE 3108,45.00,.00,45.00,Committee Lunch Wednesday 6 November 2019,"GROCERY STORES, SUPERMARKETS"
06/11/2019,Green Waste,DVLA VEHICLE TAX,617.50,.00,617.50,12 MONTHS VED VN66 BXG,GOVERNMENT SERVICES-NOT ELSEWHERE CLASSIFIED
06/11/2019,Museum S/W,Amazon.co.uk FS4LU0HV5,11.12,2.23,13.35,"Mirror for ""From Death Masks to Diaries"" exhibition, (part of interactive - self portrait booth)",DIRECT MARKETING-OTHER DIRECT MARKETERS/NOT ELSEW.
06/11/2019,Museum S/W,AMZNMKTPLACE AMAZON.CO,6.66,1.33,7.99,New snake eyes screwdriver heads to replace broken one. Used for tightening security screws for safe display of objects.,MISCELLANEOUS AND SPECIALTY RETAIL STORES
06/11/2019,Refuse & Recycling,DVLA VEHICLE TAX,"1,138.50",.00,"1,138.50",VN66 BXL 12 MONTHS VED,GOVERNMENT SERVICES-NOT ELSEWHERE CLASSIFIED
06/11/2019,Saffron Walden Day Centre,WAITROSE 135,26.36,.00,26.36,Food provisions for Saffron Walden Day Centre,"GROCERY STORES, SUPERMARKETS"
06/11/2019,Sheltered Housing,LOCKSTOCK & BARREL,18.30,3.66,21.96,KEYS FOR KEY CABINETS,HARDWARE STORES
07/11/2019,Animal Warden,THE STANWELL HEATHROW,360.00,.00,360.00,Cost of 4 nights accommodation for KH to stay at Stanwell Hotel Heathrow 01st June 2020 at cost of 90 per night Ref: BK68105 (accommodation in conjunction with 5 day Animal Licensing Training course booked to attend 01st June 2020).,"LODGING-HOTELS,MOTELS,RESORTS-NOT CLASSIFIED"
07/11/2019,Museum S/W,AMZNMktplace,27.50,5.49,32.99,Folding desk to use a stand for display case in temporary exhibition,MISCELLANEOUS AND SPECIALTY RETAIL STORES
07/11/2019,Museum S/W,AMZNMktplace,6.76,1.69,8.45,Mount for the display of digital photo frame in exhibition space.,MISCELLANEOUS AND SPECIALTY RETAIL STORES
07/11/2019,Property Services,GEODESYS,108.00,21.60,129.60,Land Searches,"UTLTS-ELCTRC, GAS, HEATING OIL, SANITARY, WATER"
08/11/2019,Museum S/W,WH SMITH,9.57,.00,9.57,"Get Well Soon Card (3 LESS privilege card discount 75p) for volunteer GR.
12 x second class stamps for referee rsvps and volunteer cards",NEWS DEALERS AND NEWSSTANDS
08/11/2019,Museum S/W,QD STORES,4.36,.88,5.24,Fixtures and fittings for exhibition installation.,DISCOUNT STORES
08/11/2019,Museum S/W,RIDGEONS SAFFRON WALDE,17.76,3.55,21.31,Plastic striping for display of record timeline in temporary exhibition,"BUILDING MATERIALS, LUMBER STORES"
09/11/2019,Thaxted Day Centre,ALDI 76 776,37.40,.00,37.40,Food provisions for meals at Thaxted Day Centre,"GROCERY STORES, SUPERMARKETS"
09/11/2019,Thaxted Day Centre,TESCO STORE 3130,85.04,.00,85.04,Food provisions for meals at Thaxted Day Centre,"GROCERY STORES, SUPERMARKETS"
10/11/2019,Border Inspection,AMZNMKTPLACE AMAZON.CO,23.65,4.73,28.38,Cost of 1 x laser thermometer gun @ 16.99  1 x set of 4 measuring scoops @ 4.99  1 x box of latex gloves @6.40 for food sampling purpose at the BIP. Promotion -2.99 Delivery 2.99,MISCELLANEOUS AND SPECIALTY RETAIL STORES
10/11/2019,Saffron Walden Day Centre,TESCO STORE 3130,91.22,.00,91.22,Food provisions for Saffron Walden Day Centre,"GROCERY STORES, SUPERMARKETS"
11/11/2019,,Trainline,80.48,.00,80.48,,PASSENGER RAILWAYS
13/11/2019,Environmental Improvements,ESSEX COUNTY COUNCIL,284.63,.00,284.63,Vehicle Crossing Application for 35 Station Road Wendons Ambo,GOVERNMENT SERVICES-NOT ELSEWHERE CLASSIFIED
13/11/2019,Sheltered Housing,RIDGEONS SAFFRON WALDE,6.00,1.20,7.20,TWO DRILL BITS FOR KEY SAFE DRILLING,"BUILDING MATERIALS, LUMBER STORES"
14/11/2019,Public Health,EBUYER (UK) LTD,12.59,2.52,15.11,Supply of 4 x Q Connect Spiral Bound Things To Do Today Books (115 Pages) at cost of 2.42 + Carriage and VAT - Invoice 25344508,HOUSEHOLD APPLIANCE STORES
15/11/2019,Development Control,UNIVERSITY OF BRIGHTON,100.00,.00,100.00,Deposit for Apprentice Residential Visit - April 2020,"COLLEGES, UNIV, PRO SCHOOLS, JUNIOR COLLEGES"
15/11/2019,Sheltered Housing,AMZNMktplace,27.49,5.50,32.99,chair for newcroft,MISCELLANEOUS AND SPECIALTY RETAIL STORES
15/11/2019,Sheltered Housing,QD STORES,8.43,1.69,10.12,Sundries for Newcroft,DISCOUNT STORES
17/11/2019,Thaxted Day Centre,TESCO STORE 3130,106.74,.00,106.74,Food provisions for meals at Thaxted Day Centre,"GROCERY STORES, SUPERMARKETS"
18/11/2019,General Planning,AMZNMktplace,11.54,1.31,12.85,White Board Cleaner and Tape.,MISCELLANEOUS AND SPECIALTY RETAIL STORES
19/11/2019,Museum S/W,QD STORES,12.47,2.50,14.97,Plastic boxes for the storage of items in the learning collections,DISCOUNT STORES
19/11/2019,Office Services,NUKEY,19.20,3.84,23.04,Keys for filing cabinets,DIRECT MARKETING-CATALOG MERCHANTS
20/11/2019,Museum S/W,WAITROSE 101,2.71,.54,3.25,Thinking of you greetings card for Welcome Desk Volunteer: BM,"GROCERY STORES, SUPERMARKETS"
21/11/2019,Benefits Admin,B AND M RETAIL,6.78,.00,6.78,Biscuits for the November 2019 Essex Benefit Manager meeting held at Uttlesford DC.,DISCOUNT STORES
21/11/2019,Grounds Maintenance,BARCHAM TREES PLC,95.00,19.00,114.00,"1x Quercus Cerris, Turkey Oak. replacement tree for Farnham PC.",LAWN AND GARDEN SUPPLY STORES
21/11/2019,Office Services,PAYPAL  EBAY CXTRADING,24.17,.00,24.17,Part for Coffee Machine.,HOUSEHOLD APPLIANCE STORES
21/11/2019,Office Services,PAYPAL  EBAY GLOBALSHI,20.89,.00,20.89,Parts for coffee machine,BUSINESS SERVICES-NOT ELSEWHERE CLASSIFIED
22/11/2019,Development Control,Greater Anglia Trains,40.70,.00,40.70,Train ticket for tripartite meeting for one apprentice.,PASSENGER RAILWAYS
22/11/2019,Health Improvements,LINKEDIN-423 0196846,171.00,34.20,205.20,Job advert,DIRECT MARKETING-CONTINUITY/SUBSCRIPTION MERCHANTS
22/11/2019,Museum S/W,CLINTONS 756,3.75,.75,4.50,3 x Get Well Soon Cards @ 1.50 each + 1 x Sympathy Card Free of charge using Front of House Manager�s loyalty discount,"GIFT, CARD, NOVELTY AND SOUVENIR SHOPS"
22/11/2019,Office Cleaning,WWW.WASHROOMHUB.CO.UK,40.00,8.00,48.00,Air filters for hand driers,INDUSTRIAL SUPPLIES NOT ELSEWHERE CLASSIFIED
22/11/2019,Office Services,WWW.SAFETYFIRSTAID.CO.,43.85,8.77,52.62,First aid box refills,INDUSTRIAL SUPPLIES NOT ELSEWHERE CLASSIFIED
22/11/2019,Office Services,MEDISAVE,36.97,7.40,44.37,Plasters for first aid station,DENTAL/LAB/MED/OPHTHALMIC HOSP EQUIP & SUPPLIES
22/11/2019,Revenues Admin,SOUTHEND COUNTY,106.50,.00,106.50,Revenue Court fee,FINES
24/11/2019,Saffron Walden Day Centre,TESCO STORE 3130,51.68,.00,51.68,Food provisions for Saffron Walden Day Centre,"GROCERY STORES, SUPERMARKETS"
24/11/2019,Thaxted Day Centre,ALDI 76 776,7.52,.00,7.52,Food provisions for meals at Thaxted Day Centre,"GROCERY STORES, SUPERMARKETS"
24/11/2019,Thaxted Day Centre,TESCO STORE 3130,145.58,.00,145.58,Food provisions for meals at Thaxted Day Centre,"GROCERY STORES, SUPERMARKETS"
25/11/2019,Chairman,SMUGMUG ONLINE PHOTOS,36.70,3.30,40.00,Chairman's Christmas Card,DIRECT MARKETING-CONTINUITY/SUBSCRIPTION MERCHANTS
25/11/2019,Museum S/W,Klarna  Sensory Educat,22.89,4.58,27.47,Sensory toys for children's explorer backpacks to help the museum become more accessible.,"GAME, TOY, AND HOBBY SHOPS"
25/11/2019,Museum S/W,Amazon.co.uk LN5X25AS5,15.99,3.20,19.19,Dry wipe boards for children's explorer packs.,DIRECT MARKETING-OTHER DIRECT MARKETERS/NOT ELSEW.
25/11/2019,Museum S/W,AMZNMktplace,5.53,1.11,6.64,explorer hat for children's explorer back packs.,MISCELLANEOUS AND SPECIALTY RETAIL STORES
25/11/2019,Planning Policy,TESCO STORE 3108,55.98,.00,55.98,"Lunch/tea coffee for Community Infrastructure Levy Inception Meeting. Some of the tea/coffee etc is for future meetings.

Should be GGP001","GROCERY STORES, SUPERMARKETS"
25/11/2019,Procurement,thetrainline.com,31.08,.00,31.08,"Train from Chelmsford to Liverpool Street (Return) to attend ""Contractor Insolvency"" Legal Seminar",PASSENGER RAILWAYS
25/11/2019,Thaxted Day Centre,HP INC UK LIMITED,3.49,.00,3.49,Ink for Thaxted Day Centre printer,"COMPUTERS, COMPUTER PERIPHERAL EQUIPMENT, SOFTWARE"
26/11/2019,Housing Services,TESCO STORES 6812,50.00,.00,50.00,TRP,"GROCERY STORES, SUPERMARKETS"
26/11/2019,Planning Policy,TESCO STORE 3108,43.75,.00,43.75,"Lunches for Stansted Bus Rapid Transit Project Group Meeting.
Should be GGP001","GROCERY STORES, SUPERMARKETS"
27/11/2019,Housing Repair,CO-OP GROUP 310462,15.00,.00,15.00,Pre-pay meter top up on void,"GROCERY STORES, SUPERMARKETS"
27/11/2019,Office Cleaning,QD STORES,11.95,.00,11.95,Descaler and Broom,DISCOUNT STORES
27/11/2019,Office Services,NUKEY,11.10,2.22,13.32,Keys for filing cabinets,DIRECT MARKETING-CATALOG MERCHANTS
27/11/2019,Office Services,www.247blinds.co.uk,114.27,22.85,137.12,Blinds for room 2 and benefits,"DRAPERY, UPOLSTERY, AND WINDOW COVERINGS STORES"
28/11/2019,Health & Safety,TRAVIS PERKINS,151.09,30.22,181.31,timber for new storage boxes on street services vans,"BUILDING MATERIALS, LUMBER STORES"
28/11/2019,Museum S/W,HOMEBASE LTD 643,16.67,3.33,20.00,Xmas tree for Museum foyer,HOME SUPPLY WAREHOUSE STORES
28/11/2019,Planning Policy,PAYPAL  RTPI,45.00,.00,45.00,Administration fee: Licentiate ,"ORGANIZATIONS, CHARITABLE AND SOCIAL SERVICES"
28/11/2019,Public Health,SETON,78.84,15.77,94.61,"Supply of PPE material (GR) 1 x PPE017111 Toe Cap Boot at cost of 35.60, 1 x Vented Helmet White at cost of 5.40, 1 x Typhoon Rain Trouser at cost of 19.99 and Cut Resist Reflex K Plus Gloves at cost of 17.85 + Carriage and VAT","DURABLE GOODS, NOT ELSEWHERE CLASSIFIED"
28/11/2019,Sheltered Housing,AMZNMktplace,21.64,4.33,25.97,Telephone Reynolds - Padlock AHH,MISCELLANEOUS AND SPECIALTY RETAIL STORES
29/11/2019,Office Services,QD STORES,10.26,.00,10.26,"Oven gloves for staff room
Filler
Foam weather strip",DISCOUNT STORES
29/11/2019,Public Health,WWW.SAFETYGLOVES.CO.UK,12.02,2.40,14.42,Supply of 1 pair of Polyco Reflex K Plus Cut Resistant Gloves 870 Size 10 @ cost of  7.07 + 4.95 Delivery + VAT (Invoice SG62005),MISCELLANEOUS AND SPECIALTY RETAIL STORES
01/12/2019,Thaxted Day Centre,ALDI 76 776,10.51,.00,10.51,Food provisions for meals at Thaxted Day Centre,"GROCERY STORES, SUPERMARKETS"
01/12/2019,Thaxted Day Centre,TESCO STORE 3130,117.37,.00,117.37,Food provisions for meals at Thaxted Day Centre,"GROCERY STORES, SUPERMARKETS"
02/12/2019,Chief Executive,TESCO STORE 2101,4.46,.00,4.46,Stansted Foodbank,"GROCERY STORES, SUPERMARKETS"
04/12/2019,Chief Executive,TESCO STORE 3108,20.00,.00,20.00,Christmas/Depot,"GROCERY STORES, SUPERMARKETS"
04/12/2019,Chief Executive,TESCO STORE 3108,24.00,.00,24.00,Christmas/Depot,"GROCERY STORES, SUPERMARKETS"
04/12/2019,Legal Services,TNA DISCOVERY ORDERS,8.40,.00,8.40,The National Archives re supply,GOVERNMENT SERVICES-NOT ELSEWHERE CLASSIFIED
04/12/2019,Legal Services,TNA DISCOVERY ORDERS,8.40,.00,8.40,The National Archives re registration,GOVERNMENT SERVICES-NOT ELSEWHERE CLASSIFIED
04/12/2019,Museum S/W,QD STORES,4.98,1.00,5.98,Washing up liquid for the Museum kitchen and decorations for Museum Xmas tree (pack of miniature baubles for our new smaller tree),DISCOUNT STORES
04/12/2019,Office Services,BARRIERS4U.CO.UK,266.00,53.20,319.20,Barriers for the election,INDUSTRIAL SUPPLIES NOT ELSEWHERE CLASSIFIED
04/12/2019,Public Health,CHARTERED INSTITUTE OF,99.00,.00,99.00,1 Place for CCG booked to attend CIEH Network Conference on Air Quality @ cost of 99.00.,"ORGANIZATIONS, CHARITABLE AND SOCIAL SERVICES"
05/12/2019,Benefits Admin,GA AUDLEY STORTFORD ST,9.50,.00,9.50,Benefit Manager Car Parking at Audley End for Northgate AGM in London,AUTOMOBILE PARKING LOTS AND GARAGES
05/12/2019,Benefits Admin,GREATER ANGLIA T/O,27.70,.00,27.70,Benefit Manager Rail Travel Warrant for Northgate AGM in London,PASSENGER RAILWAYS
05/12/2019,Disabled Works,AMZNMktplace,14.55,.00,14.55,Toilet Flush button,MISCELLANEOUS AND SPECIALTY RETAIL STORES
05/12/2019,Highway Ranger,RIDGEONS SAFFRON WALDE,223.85,44.78,268.63,"trade wood primer, wood filler, powder filler, white undercoat, metal aerosol black, pozi wood screws, impact driver bits, vanash gloss.","BUILDING MATERIALS, LUMBER STORES"
05/12/2019,Highway Ranger,GEORGE BROWNS,40.00,8.00,48.00,timberwolf chipper blade sharpening,MISCELLANEOUS AND SPECIALTY RETAIL STORES
05/12/2019,Housing Services,THE EIGHT BELLS,314.94,.00,314.94,Tenant Forum/Reg Panel Xmas lunch,"EATING PLACES, RESTAURANTS"
05/12/2019,Property Services,GEODESYS,225.18,45.04,270.22,searches x 2,"UTLTS-ELCTRC, GAS, HEATING OIL, SANITARY, WATER"
08/12/2019,Saffron Walden Day Centre,TESCO STORE 3130,149.93,.00,149.93,Food provisions for Saffron Walden Day Centre,"GROCERY STORES, SUPERMARKETS"
08/12/2019,Sheltered Housing,Amazon.co.uk JX1RS6BJ5,13.29,2.66,15.95,LAMINATOR,DIRECT MARKETING-OTHER DIRECT MARKETERS/NOT ELSEW.
08/12/2019,Sheltered Housing,Amazon.co.uk 5E4TS7CC5,14.16,2.83,16.99,PAPER TRIMMER,DIRECT MARKETING-OTHER DIRECT MARKETERS/NOT ELSEW.
09/12/2019,Health Improvements,AMZNMktplace,66.28,11.66,77.94,Clothes hangars and rails for coat exchange scheme,MISCELLANEOUS AND SPECIALTY RETAIL STORES
09/12/2019,Saffron Walden Day Centre,QD STORES,44.06,.00,44.06,Food provisions for Saffron Walden Day Centre,DISCOUNT STORES
09/12/2019,Saffron Walden Offices,RIDGEONS SAFFRON WALDE,26.80,5.36,32.16,tape for elections,"BUILDING MATERIALS, LUMBER STORES"
09/12/2019,Thaxted Day Centre,ALDI 76 776,16.23,.00,16.23,Food provisions for meals at Thaxted Day Centre,"GROCERY STORES, SUPERMARKETS"
09/12/2019,Thaxted Day Centre,TESCO STORE 3130,74.40,.00,74.40,Food provisions for meals at Thaxted Day Centre,"GROCERY STORES, SUPERMARKETS"
10/12/2019,Saffron Walden Offices,HOMEBASE LTD 643,101.00,.00,101.00,heaters and lights for elections,HOME SUPPLY WAREHOUSE STORES
10/12/2019,Saffron Walden Offices,HOMEBASE LTD 643,180.00,.00,180.00,heaters for elections,HOME SUPPLY WAREHOUSE STORES
10/12/2019,Saffron Walden Offices,WWW.TCFIXINGS.CO.UK,32.99,.00,32.99,lights for elections,"BUILDING MATERIALS, LUMBER STORES"
11/12/2019,Legal Services,WWW.MONEYCLAIM.GOV,25.00,.00,25.00,Issuing proceedings - Iken 10620,GOVERNMENT SERVICES-NOT ELSEWHERE CLASSIFIED
11/12/2019,Sheltered Housing,QD STORES,5.63,1.13,6.76,CLEANING SUPPLIES,DISCOUNT STORES
12/12/2019,Highway Ranger,TRAVIS PERKINS,45.65,9.13,54.78,ballast bulk bag,"BUILDING MATERIALS, LUMBER STORES"
12/12/2019,Housing Repair,BRITISH GAS ONLINE,20.00,.00,20.00,"Top up gas meter 20 for 22 Upper Mill Field, Dunmow, CM6 1ER","UTLTS-ELCTRC, GAS, HEATING OIL, SANITARY, WATER"
12/12/2019,Museum S/W,CLINTONS 756,6.87,1.38,8.25,3 x Birthday Cards @ 2.75 each + 1 x 70th Birthday Card Free of charge using Front of House Manager�s loyalty discount (for sending to Museum Volunteers),"GIFT, CARD, NOVELTY AND SOUVENIR SHOPS"
12/12/2019,Property Services,GEODESYS,114.50,22.90,137.40,Land searches,"UTLTS-ELCTRC, GAS, HEATING OIL, SANITARY, WATER"
12/12/2019,Sheltered Housing,AMZNMktplace,9.99,2.00,11.99,Letterbox Guard The Close,MISCELLANEOUS AND SPECIALTY RETAIL STORES
15/12/2019,Saffron Walden Day Centre,TESCO STORE 3130,47.96,.00,47.96,Food provisions for Saffron Walden Day Centre,"GROCERY STORES, SUPERMARKETS"
15/12/2019,Thaxted Day Centre,TESCO STORE 3130,90.88,.00,90.88,Food provisions for meals at Thaxted Day Centre,"GROCERY STORES, SUPERMARKETS"
16/12/2019,Democratic Rep,TESCO STORE 3108,110.00,.00,110.00,Members Special Council Refreshments,"GROCERY STORES, SUPERMARKETS"
16/12/2019,Lifeline,SMILE PUBLISHING LTD,428.00,85.60,513.60,L/L AD FOR PAH HOSP MAGAZINE,MISCELLANEOUS PUBLISHING AND PRINTING
16/12/2019,Refuse & Recycling,DVLA VEHICLE TAX,722.50,.00,722.50,VED for VU61HVJ,GOVERNMENT SERVICES-NOT ELSEWHERE CLASSIFIED
16/12/2019,Saffron Walden Day Centre,WAITROSE 135,9.05,.00,9.05,Food provisions for Saffron Walden Day Centre,"GROCERY STORES, SUPERMARKETS"
17/12/2019,General Planning,Amazon.co.uk UM4A09OM5,45.17,9.03,54.20,"Purple wrist rest
Mouse mat with wrist support
2 x adjustable monitor stands",DIRECT MARKETING-OTHER DIRECT MARKETERS/NOT ELSEW.
17/12/2019,Office Services,WWW.TCFIXINGS.CO.UK,171.50,16.50,188.00,LED Lights for Election Polling Stations,"BUILDING MATERIALS, LUMBER STORES"
18/12/2019,,CHARTERED INST OF,130.00,.00,130.00,,PROFESSIONAL SERVICES-NOT ELSEWHERE CLASSIFIED
18/12/2019,Democratic Representation,TESCO STORE 3108,72.50,.00,72.50,Lunch for planning committee 15/01/2020,"GROCERY STORES, SUPERMARKETS"
18/12/2019,Housing Repair,CO-OP GROUP 310462,10.00,.00,10.00,Pre-pay meter top up on void,"GROCERY STORES, SUPERMARKETS"
18/12/2019,Museum S/W,QD STORES,2.87,.58,3.45,5 sets of C batteries for Thermo-hygrographs for environmental monitoring temperature and humidity in museum stores,DISCOUNT STORES
18/12/2019,Saffron Walden Day Centre,QD STORES,14.98,.00,14.98,Purchase of other materials for Christmas Lunch service,DISCOUNT STORES
18/12/2019,Sheltered Housing,SP   CROSSWORDSITE,11.02,2.20,13.22,CROSSWORD WORDSEARCH FOR WOW,"GAME, TOY, AND HOBBY SHOPS"
19/12/2019,Office Services,TESCO STORES 2470,2.75,.00,2.75,Screenwash for the vans,"GROCERY STORES, SUPERMARKETS"
19/12/2019,Refuse & Recycling,DVLA VEHICLE TAX,233.50,.00,233.50,12 MONTHS VED DV63 XUZ,GOVERNMENT SERVICES-NOT ELSEWHERE CLASSIFIED
20/12/2019,Refuse & Recycling,TEMERAIRE,50.12,10.02,60.14,TEAM XMAS BREAKFAST,"EATING PLACES, RESTAURANTS"
20/12/2019,Saffron Walden Offices,TESCO STORE 3130,6.00,.00,6.00,stain remover,"GROCERY STORES, SUPERMARKETS"
23/12/2019,Building Surveying,AMZNMKTPLACE AMAZON.CO,16.59,3.36,19.95,Diaries for Building Control Officers,MISCELLANEOUS AND SPECIALTY RETAIL STORES
23/12/2019,Legal Services,WWW.MONEYCLAIM.GOV,35.00,.00,35.00,Issuing claim Re: Iken 10690,GOVERNMENT SERVICES-NOT ELSEWHERE CLASSIFIED
23/12/2019,Office Services,RIDGEONS SAFFRON WALDE,9.11,1.82,10.93,"Saw, locking nuts and bolts","BUILDING MATERIALS, LUMBER STORES"
24/12/2019,Thaxted Day Centre,HP INC UK LIMITED,3.49,.00,3.49,Purchase of Printer Ink for printer at Thaxted DC,"COMPUTERS, COMPUTER PERIPHERAL EQUIPMENT, SOFTWARE"
30/12/2019,Office Services,QD STORES,1.49,.00,1.49,Plunger,DISCOUNT STORES
30/12/2019,Saffron Walden Offices,HOMEBASE LTD 643,10.00,.00,10.00,paint,HOME SUPPLY WAREHOUSE STORES
31/12/2019,,HOMEBASE LTD 643,5.60,.00,5.60,,HOME SUPPLY WAREHOUSE STORES
31/12/2019,Public Health,W A PRODUCTS UK,46.25,9.25,55.50,Supply of 1 x 100 Medium Evidence Bags @ cost of 17.55 + 1 x 100 Small Evidence Bags @ cost of 13.70 + Carriage cost @ 15.00 + VAT,"DURABLE GOODS, NOT ELSEWHERE CLASSIFIED"
02/01/2020,Chairman,TESCO STORE 3108,25.50,.00,25.50,Chairman/Long Service Awards,"GROCERY STORES, SUPERMARKETS"
02/01/2020,Public Health (Commercial Team),ETI LTD,18.50,3.70,22.20,Cost of 3 x cartons of 100 sachet probe wipes @5.50 each  Shipping 2.00. Ref PS060790 02.01.2020,COMPUTER SOFTWARE STORES
02/01/2020,Saffron Walden Offices,MEDLOCK ELECTRICAL,10.00,2.00,12.00,light bulbs,ELECTRICAL PARTS AND EQUIPMENT
04/01/2020,Thaxted Day Centre,TESCO STORE 3130,145.17,.00,145.17,Food provisions for meals at Thaxted Day Centre,"GROCERY STORES, SUPERMARKETS"
05/01/2020,Saffron Walden Day Centre,TESCO STORE 3130,101.01,.00,101.01,Food provisions for Saffron Walden Day Centre,"GROCERY STORES, SUPERMARKETS"
06/01/2020,Land Charges,Greater Anglia Trains,29.50,.00,29.50,Train HMLR pre-migration data meeting,PASSENGER RAILWAYS
06/01/2020,Museum S/W,WWW.PLOT-IT.CO.UK,66.91,13.38,80.29,"4 packs of 100 plan filing strips for storing archaeological plans, drawings and maps in plan tanks at Shirehill store.","OFFICE, SCHOOL SUPPLY, AND STATIONERY STORES"
07/01/2020,Museum S/W,AMZNMKTPLACE AMAZON.CO,15.41,3.08,18.49,Poster paint for use in craft sessions for children and adults,MISCELLANEOUS AND SPECIALTY RETAIL STORES
07/01/2020,Museum S/W,AMZNMKTPLACE AMAZON.CO,4.99,1.00,5.99,Bobbins for use in STEM sessions in the museum and for making a new STEM loan box,MISCELLANEOUS AND SPECIALTY RETAIL STORES
07/01/2020,Museum S/W,AMZNMktplace,6.66,1.33,7.99,30 paintbrushes for use in craft sessions for children and adults,MISCELLANEOUS AND SPECIALTY RETAIL STORES
07/01/2020,Museum S/W,AMZNMktplace,6.66,1.33,7.99,Binding screws for book binding for Grown Up Art Club,MISCELLANEOUS AND SPECIALTY RETAIL STORES
07/01/2020,Museum S/W,AMZNMktplace,5.41,1.08,6.49,book binding tools set for Adult craft sessions,MISCELLANEOUS AND SPECIALTY RETAIL STORES
07/01/2020,Museum S/W,Amazon.co.uk UI22B7Q25,17.77,3.56,21.33,Set of acrylic paints for use in craft sessions for children and adults,DIRECT MARKETING-OTHER DIRECT MARKETERS/NOT ELSEW.
07/01/2020,Museum S/W,Amazon.co.uk BY2PI31C5,29.67,5.93,35.60,12 large magnets for use in STEM sessions for children and for use in loan boxes,DIRECT MARKETING-OTHER DIRECT MARKETERS/NOT ELSEW.
07/01/2020,Public Health (Commercial Team),thetrainline.com,254.17,.00,254.17,"Cost of 2 train journeys for officer to attend college in Coventry for Food Control training course.
Booking fee 1.50   Credit card fee   4.37   Transaction ID 487069326724.",PASSENGER RAILWAYS
08/01/2020,Health & Safety,TRAVIS PERKINS,62.21,12.45,74.66,"fence post, bolts, drain pipe. saw","BUILDING MATERIALS, LUMBER STORES"
08/01/2020,Housing Services,BARNSTON LUXURY TRAVEL,240.00,.00,240.00,Taxi,LIMOUSINES AND TAXICABS
08/01/2020,Museum S/W,AMZNMKTPLACE AMAZON.CO,2.07,.42,2.49,LEDS for STEM sessions for children and for use in the development of a STEM loan box for schools,MISCELLANEOUS AND SPECIALTY RETAIL STORES
08/01/2020,Museum S/W,AMZNMktplace,2.79,.56,3.35,tools for art and craft sessions for children and adults,MISCELLANEOUS AND SPECIALTY RETAIL STORES
08/01/2020,Museum S/W,Amazon.co.uk YB5DK6D45,3.75,.75,4.50,Coffee filter paper for use in STEM sessions and the development of a new STEM loan box,DIRECT MARKETING-OTHER DIRECT MARKETERS/NOT ELSEW.
09/01/2020,Border Inspection,WWW.FURNITUREATWORK.CO,220.80,44.16,264.96,"Cost of 3 replacement office chairs for UDC staff at the Border Control Post. Inv 319749  
09.01.2020","EQUIP, FURNITURE, HOME FURNSHNGS STRS (EXCPT APPL)"
09/01/2020,Museum S/W,AMZNMktplace,3.32,.67,3.99,Tab calender's for children's craft activities,MISCELLANEOUS AND SPECIALTY RETAIL STORES
09/01/2020,Public Health (Commercial Team),WWW.NISBETS.COM,43.12,8.62,51.74,"Cost of 8 hats for the purpose of Food Hygiene Inspections. 6 @ 5.19  2 @ 5.99
Inv 20544838  09.01.2020",DIRECT MARKETING-CATALOG MERCHANTS
09/01/2020,Saffron Walden Offices,WWW.JCTLTD.CO.UK,87.20,.00,87.20,Purchase of Joint Contract Tribunal Documents for Construction Contract.,BOOK STORES
09/01/2020,Sheltered Housing,QD STORES,22.88,4.57,27.45,"Noticeboards for vic mead, case for k/s drill",DISCOUNT STORES
10/01/2020,,B AND M RETAIL,3.98,.00,3.98,,DISCOUNT STORES
10/01/2020,Border Inspection,WWW.THERUBBERSTAMPCOMP,72.42,14.48,86.90,Cost of 2 rubber stamps for certifying documents @28.75 each and 2 ink pads @7.46 each. Inv. 200697  10.01.2020,STATIONERY/OFFICE SUPPLIES/PRINTING & WRITING PAP.
12/01/2020,Saffron Walden Day Centre,SAINSBURYS 0419,128.82,.00,128.82,Food provisions for Saffron Walden Day Centre,"GROCERY STORES, SUPERMARKETS"
12/01/2020,Thaxted Day Centre,ALDI 76 776,17.32,.00,17.32,Food provisions for meals at Thaxted Day Centre,"GROCERY STORES, SUPERMARKETS"
12/01/2020,Thaxted Day Centre,TESCO STORE 3130,77.13,.00,77.13,Food provisions for meals at Thaxted Day Centre,"GROCERY STORES, SUPERMARKETS"
13/01/2020,Housing Repair,AMZNMktplace,28.50,.00,28.50,Premium noticeboard,MISCELLANEOUS AND SPECIALTY RETAIL STORES
14/01/2020,Housing Services,TESCO STORE 2574,100.00,.00,100.00,TP Refreshments,"GROCERY STORES, SUPERMARKETS"
15/01/2020,Democratic Representation,TESCO STORE 3108,72.00,.00,72.00,Lunch for Planning Committee 15/01/2020,"GROCERY STORES, SUPERMARKETS"
15/01/2020,Land Charges,GA AUDLEY STORTFORD ST,10.00,.00,10.00,Parking for HMLR pre-migration data meeting,AUTOMOBILE PARKING LOTS AND GARAGES
15/01/2020,Public Health,CHARTERED INSTITUTE OF,145.00,.00,145.00,1 place booked for CCG to attend CIEH 12th Housing and Health Conference 19th May 2020 London @ cost of 145.00,"ORGANIZATIONS, CHARITABLE AND SOCIAL SERVICES"
15/01/2020,Sheltered Housing,B AND M RETAIL,4.15,.83,4.98,noticeboards,DISCOUNT STORES
15/01/2020,Thaxted Day Centre,TESCO STORE 3130,26.40,.00,26.40,Food provisions for meals at Thaxted Day Centre,"GROCERY STORES, SUPERMARKETS"
16/01/2020,Housing Repair,TESCO STORE 3108,47.00,.00,47.00,Norse Lunch,"GROCERY STORES, SUPERMARKETS"
16/01/2020,Refuse & Recycling,COMMERCIAL FUEL SO,58.50,11.70,70.20,"1 x Manual Dispensing Nozzle for AD-BLU pump. replacement @ 43.00
1 x next day postage @ 15.50
VAT @ 11.70",INDUSTRIAL SUPPLIES NOT ELSEWHERE CLASSIFIED
16/01/2020,Sheltered Housing,B AND M RETAIL,7.89,1.58,9.47,sundries for sheltered,DISCOUNT STORES
17/01/2020,Democratic Representation,TESCO STORE 3108,75.30,.00,75.30,Lunch for Planning Committee - 17/01/2020,"GROCERY STORES, SUPERMARKETS"
17/01/2020,Housing Services,TESCO STORE 3130,25.00,.00,25.00,Survey prize,"GROCERY STORES, SUPERMARKETS"
17/01/2020,Public Health,PET INDUSTRY FEDERATIO,990.00,.00,990.00,1 Place for KH to attend 5 day Professional Programme in Inspecting Licensable Activities Involving Animals Training at cost of 990.00 Ref: 1154,PET SHOPS - PET FOODS AND SUPPLIES
17/01/2020,Public Health (Commercial Team),thetrainline.com,213.17,.00,213.17,Cost of 2 train journeys for officer to attend college in Coventry for Food Control training course. Booking fee 1.50 Credit card fee 3.67  Transaction ID 785599835585.,PASSENGER RAILWAYS
17/01/2020,Revenues Admin,SOUTHEND COUNTY,211.00,.00,211.00,Revenue Court Fees,FINES
20/01/2020,Garden Communities DPD,TESCO STORE 3108,52.00,.00,52.00,Stansted BRT Project Group Meeting Lunch,"GROCERY STORES, SUPERMARKETS"
20/01/2020,Museum S/W,CLINTONS-169,6.87,1.38,8.25,3 x Birthday Cards @ 2.75 each + 1 x 90th Birthday Card Free of charge using Front of House Manager�s loyalty discount (for sending to Museum Volunteers),"GIFT, CARD, NOVELTY AND SOUVENIR SHOPS"
20/01/2020,Office Services,TESCO STORES 6812,1.10,.00,1.10,Milk,"GROCERY STORES, SUPERMARKETS"
20/01/2020,Refuse & Recycling,TEMERAIRE,64.47,12.90,77.37,TEAM XMAS BREAKFAST,"EATING PLACES, RESTAURANTS"
20/01/2020,Refuse & Recycling,TEMERAIRE,4.33,.87,5.20,BENS BREAKFAST,"EATING PLACES, RESTAURANTS"
20/01/2020,Trade Waste,THEROSEGARDEN LIMI,47.45,.00,47.45,FLOWERS,FLORISTS
21/01/2020,Housing Repair,CO-OP GROUP 310462,20.00,.00,20.00,"Pre-pay meter top up on void, order number 427239/1","GROCERY STORES, SUPERMARKETS"
21/01/2020,Planning Policy,Greater Anglia Trains,22.70,.00,22.70,Train ticket for travel from Audley End to London for a Policy Meeting,PASSENGER RAILWAYS
21/01/2020,Planning Policy,thetrainline.com,30.58,.00,30.58,Train ticket for Policy team member to travel to a Planning Officer Society session on Neighbourhood Planning.,PASSENGER RAILWAYS
21/01/2020,Street Cleansing,DVLA VEHICLE TAX,722.50,.00,722.50,VED RX60 EUZ,TAX PAYMENTS
22/01/2020,Border Inspection,TRANSPACK LIMITED,69.54,13.91,83.45,Cost of 1000 medium duty poly bags for food sampling at the BCP @73.20 5% dis @3.66  O/N 100085229.,MISCELLANEOUS AND SPECIALTY RETAIL STORES
22/01/2020,Chairman,TESCO STORE 3108,1.00,.00,1.00,balance of delivery charge against Clubcard voucher shortfall,"GROCERY STORES, SUPERMARKETS"
22/01/2020,"Depot, Gt Dunmow",AMZNMKTPLACE AMAZON.CO,449.98,90.00,539.98,Lockers for the Depot,MISCELLANEOUS AND SPECIALTY RETAIL STORES
22/01/2020,Human Resources,AMZNMKTPLACE AMAZON.CO,50.04,.00,50.04,ILM5 training - 5 x Books,MISCELLANEOUS AND SPECIALTY RETAIL STORES
22/01/2020,Legal Services,TNA DISCOVERY ORDERS,3.60,.00,3.60,The National Archives - Commons Scheme of Regulation,GOVERNMENT SERVICES-NOT ELSEWHERE CLASSIFIED
22/01/2020,Saffron Walden Offices,RICS COM GBP CYBS,199.00,39.80,238.80,Continuation of Professional Development - Royal Institution of Chartered Surveyors (RICS) Training � Foundation Courses  1 year subscription fee.,"ORGANIZATIONS, MEMBERSHIP-NOT ELSEWHERE CLASSIFIED"
22/01/2020,Sheltered Housing,BISHOP STORTFORD INSID,33.32,6.66,39.98,Kettle & Extention Lead VIC Mead,"BUYING/SHOPPING CLUBS, SERVICES"
22/01/2020,Sheltered Housing,B M RETAIL,10.00,2.00,12.00,Air Freshners & Batteries,DISCOUNT STORES
22/01/2020,Vehicle Maintenance,DVSA  LEARNER,37.00,.00,37.00,LGV THEORY & HAZARD PERCEPTION TEST,GOVERNMENT SERVICES-NOT ELSEWHERE CLASSIFIED
23/01/2020,Housing Services,STAPLES.CO.UK,81.05,16.21,97.26,desk,"OFFICE, SCHOOL SUPPLY, AND STATIONERY STORES"
23/01/2020,Housing Services,ALDI 76 776,20.72,.00,20.72,sundries for Alexia House residents party,"GROCERY STORES, SUPERMARKETS"
23/01/2020,Housing Services,B AND M RETAIL,30.34,6.07,36.41,Sundries for Alexia House residents party,DISCOUNT STORES
23/01/2020,Museum S/W,QD STORES,4.15,.83,4.98,2X padlocks for Museum boiler room window grate,DISCOUNT STORES
23/01/2020,Museum S/W,HOMEBASE LTD 643,8.75,1.75,10.50,Dry sand for Museum sandpit,HOME SUPPLY WAREHOUSE STORES
23/01/2020,Museum S/W,WH SMITH,10.04,2.00,12.04,2 x 2020 A4 daybook diaries (at sale discount) for Museum Contractors Log and Shirehill Store Diary & Daybook,NEWS DEALERS AND NEWSSTANDS
23/01/2020,Refuse & Recycling,CHARTERED INST OF,130.00,.00,130.00,CIWM MEMBERSHIP,PROFESSIONAL SERVICES-NOT ELSEWHERE CLASSIFIED
24/01/2020,Air/Noise Pollution,NORMANTON SCREENPRINT,275.45,55.09,330.54,"Supply of 20 x A3 White Correx Signs ""Turn Off Your Engine"" with 2 drilled holes and 30 x A4 White Correx Signs ""Turn Off Your Engine"" with 2 drilled holes @ total cost of 275.00 Inc. Delivery Plus VAT","QUICK COPY,REPRODUCTION AND BLUEPRINTING SERVICES"
24/01/2020,Democratic Representation,TESCO STORE 3108,67.76,.00,67.76,Committee Lunch for 24 January 2020,"GROCERY STORES, SUPERMARKETS"
24/01/2020,Museum S/W,Photobox Limited,28.87,.00,28.87,Book self published by Paul Wood - Titled From Station Officer Drane (Rose & Crown fire 1969) - for Temporary exhibition on history of fire-fighting in Essex.,MISCELLANEOUS PUBLISHING AND PRINTING
24/01/2020,Museum S/W,Amazon.co.uk 8T1C11IL5,17.64,3.53,21.17,Coloured pencils for use in museum.,DIRECT MARKETING-OTHER DIRECT MARKETERS/NOT ELSEW.
24/01/2020,Museum S/W,AMZNMktplace,9.99,2.00,11.99,Scissors to use in Museum.,MISCELLANEOUS AND SPECIALTY RETAIL STORES
24/01/2020,Museum S/W,Amazon.co.uk WX3RR1VK5,26.15,5.23,31.38,large set of coloured pens to use in museum,DIRECT MARKETING-OTHER DIRECT MARKETERS/NOT ELSEW.
24/01/2020,Thaxted Day Centre,HP INC UK LIMITED,2.91,.58,3.49,Printer Ink Subscription at Thaxted Day Centre,"COMPUTERS, COMPUTER PERIPHERAL EQUIPMENT, SOFTWARE"
25/01/2020,Museum S/W,AMZNMktplace,14.99,3.00,17.99,Plastic trays for use in science session at the museum,MISCELLANEOUS AND SPECIALTY RETAIL STORES
26/01/2020,Saffron Walden Day Centre,ALDI 76 776,126.28,3.45,129.73,Food provisions for Saffron Walden Day Centre,"GROCERY STORES, SUPERMARKETS"
27/01/2020,General Planning,FOCUS PROJECT MGMNT (E,474.00,94.80,568.80,Microsoft Project 2016 Introduction training - Feb 2020,"SCHOOLS, BUSINESS AND SECRETARIAL"
27/01/2020,General Planning,Amazon.co.uk Q53RL2Z75,33.32,6.66,39.98,2 x kettles,DIRECT MARKETING-OTHER DIRECT MARKETERS/NOT ELSEW.
27/01/2020,Refuse & Recycling,CHARTERED INST OF,16.67,3.33,20.00,CIWM CONFERANCE,PROFESSIONAL SERVICES-NOT ELSEWHERE CLASSIFIED
27/01/2020,Sheltered Housing,VIKING UK,149.00,29.80,178.80,FILING CABINET,STATIONERY/OFFICE SUPPLIES/PRINTING & WRITING PAP.
27/01/2020,Thaxted Day Centre,TESCO STORE 2574,59.16,.00,59.16,Food provisions for meals at Thaxted Day Centre,"GROCERY STORES, SUPERMARKETS"
29/01/2020,Chief Executive,TESCO STORES 6812,9.75,.00,9.75,EELGA Lunch,"GROCERY STORES, SUPERMARKETS"
30/01/2020,Development Control,AMZNMktplace,19.71,3.94,23.65,Best Memory Foam Cushion for H&S for Officer,MISCELLANEOUS AND SPECIALTY RETAIL STORES
30/01/2020,Garden Communities DPD,WWW.WESTMINSTER-BRIEFI,306.00,.00,306.00,MHCLG and HE Seminar Feb 5th - London The Housing Delivery Conference: Accelerating Building Capability Across the Sector,"SCHOOLS, BUSINESS AND SECRETARIAL"
30/01/2020,Museum S/W,CJK PACKAGING,9.49,1.90,11.39,Bottle caps and funnels for use in STEAM activities - including toddler steam sessions and loan boxes and school sessions in the future.,INDUSTRIAL SUPPLIES NOT ELSEWHERE CLASSIFIED
31/01/2020,,WWW.MONEYCLAIM.GOV,105.00,.00,105.00,,GOVERNMENT SERVICES-NOT ELSEWHERE CLASSIFIED
31/01/2020,Grounds Maintenance,SPRINGWELL NURSERY,14.95,2.99,17.94,"6x large tree straps/ties for replacement trees on the green, little walden road.",LAWN AND GARDEN SUPPLY STORES
31/01/2020,Housing Services,Amazon.co.uk 727QY7D35,39.51,7.91,47.42,Leaflet Display Vic Mead,DIRECT MARKETING-OTHER DIRECT MARKETERS/NOT ELSEW.
31/01/2020,Public Health (Commercial Team),thetrainline.com,337.61,.00,337.61,Cost of 337.61 (1.50 Bkng Fee and 5.81 CC Fee Inc.) for train journeys booked for Officer to attend College in Coventry For Food Control Training Course. Ref:TN,PASSENGER RAILWAYS
31/01/2020,Thaxted Day Centre,TESCO STORE 2574,15.32,.00,15.32,Food provisions for meals at Thaxted Day Centre,"GROCERY STORES, SUPERMARKETS"
01/02/2020,Housing Services,B M RETAIL,21.62,4.32,25.94,Air Freshner units,DISCOUNT STORES
03/02/2020,,WWW.MONEYCLAIM.GOV,25.00,.00,25.00,,GOVERNMENT SERVICES-NOT ELSEWHERE CLASSIFIED
03/02/2020,General Planning,FOCUS PROJECT MGMNT (E,()474.00,()94.80,()568.80,Microsoft Project 2016 Introduction training - Feb 2020 - cancelled,"SCHOOLS, BUSINESS AND SECRETARIAL"
03/02/2020,Public Health,WWW.LOCKDOCTOR.BIZ,3.90,.78,4.68,"Supply of 1 Replacement Desk Key FM186 @cost of 2.95 + Delivery + VAT
Ref: 234934",MISCELLANEOUS AND SPECIALTY RETAIL STORES
04/02/2020,Highway Ranger,RIDGEONS SAFFRON WALDE,136.44,27.30,163.74,"underground pipe 110mm x3m, 18mm hardwood faced ply, 38x225 par select, 38x150 par select, seal and fix white, aerosol satin finish, 15mm bristle sash brush, sadoline wood stain","BUILDING MATERIALS, LUMBER STORES"
04/02/2020,Housing Services,AMZNMktplace,5.78,.00,5.78,NO SMOKING SIGNS - CANT CLAIM VAT AS NO INVOICE SENT,MISCELLANEOUS AND SPECIALTY RETAIL STORES
04/02/2020,Housing Services,TESCO STORE 3130,100.00,.00,100.00,TP prize,"GROCERY STORES, SUPERMARKETS"
04/02/2020,Museum S/W,RIDGEONS SAFFRON WALDE,11.06,2.21,13.27,Wire cutters for hanging Museum pictures.,"BUILDING MATERIALS, LUMBER STORES"
04/02/2020,Property Services,B AND M RETAIL,67.94,.00,67.94,Tenant decant,DISCOUNT STORES
04/02/2020,Public Health (Commercial Team),WWW.DICKIESSTORE.CO.UK,36.66,7.34,44.00,"Cost of 1 x pair of safety shoes for the purpose of food inspection and sampling @33.33.
Ref DWW1320989  EP  Delivery @3.33",MEN'S AND WOMEN'S CLOTHING STORES
05/02/2020,Border Inspection,WWW.ELITEINDUSTRIAL.CO,122.55,24.51,147.06,Cost of 4 x Hi-Vis jackets with UDC and Port Health logo for use at the BCP @29.14 each. P&P 5.99 REF 87712,MISCELLANEOUS AND SPECIALTY RETAIL STORES
05/02/2020,Border Inspection,AMZNMktplace,78.43,.00,78.43,Cost of storage box and padlocks for securely storing equipment at the BCP. Ref 604806 & GB -650753635-2020-1910 JA,MISCELLANEOUS AND SPECIALTY RETAIL STORES
05/02/2020,Health & Safety,BSST LTD,160.00,.00,160.00,Cost of Behavioural Safety Services Online Training. Ref 1716-0803 AS,COMPUTER SOFTWARE STORES
05/02/2020,Museum S/W,AMZNMktplace,5.82,1.17,6.99,100 balloons for use in STEAM sessions and crafts,MISCELLANEOUS AND SPECIALTY RETAIL STORES
05/02/2020,Museum S/W,Amazon.co.uk T20PM16C5,6.22,1.24,7.46,masking tape for crafts,DIRECT MARKETING-OTHER DIRECT MARKETERS/NOT ELSEW.
05/02/2020,Museum S/W,Amazon.co.uk P37YR5ND5,4.99,1.00,5.99,cotton reels for use in STEAM sessions - simple machines and crafts,DIRECT MARKETING-OTHER DIRECT MARKETERS/NOT ELSEW.
05/02/2020,Public Health,WWW.SAFETYGLOVES.CO.UK,6.93,1.39,8.32,"Supply of 1 pair of Portwest Dermiflex Waterproof Nitrile Gloves AP62 Size 7 (small) @ cost of 1.98 + Delivery and VAT
Ref: SG67533",MISCELLANEOUS AND SPECIALTY RETAIL STORES
05/02/2020,Refuse & Recycling,DVSA  LEARNER,11.00,.00,11.00,hgv hazard perception,GOVERNMENT SERVICES-NOT ELSEWHERE CLASSIFIED
05/02/2020,Refuse & Recycling,DVSA  LEARNER,26.00,.00,26.00,hgv driving licence theory,GOVERNMENT SERVICES-NOT ELSEWHERE CLASSIFIED
05/02/2020,Thaxted Day Centre,TESCO STORE 2574,10.45,.00,10.45,Food provisions for meals at Thaxted Day Centre,"GROCERY STORES, SUPERMARKETS"
06/02/2020,Building Surveying,HTTPS://WWW.ESTORE.WLV,390.00,.00,390.00,Block week accommodation for 2 x apprentices,"COLLEGES, UNIV, PRO SCHOOLS, JUNIOR COLLEGES"
06/02/2020,Museum S/W,Amazon.co.uk EX1K32SE5,3.46,.69,4.15,pencil sharpeners for sharpening pencils.,DIRECT MARKETING-OTHER DIRECT MARKETERS/NOT ELSEW.
06/02/2020,Museum S/W,AMZNMktplace,19.75,3.95,23.70,clay for crafts and education sessions,MISCELLANEOUS AND SPECIALTY RETAIL STORES
06/02/2020,Public Health (Commercial Team),WWW.SIGN-HOLDERS.CO.UK,8.75,1.75,10.50,Cost of display frame for Licensing room occupancy list @4.60  Carriage @ 4.15,MISCELLANEOUS AND SPECIALTY RETAIL STORES
06/02/2020,Thaxted Day Centre,TESCO STORE 2574,13.96,.00,13.96,Food provisions for meals at Thaxted Day Centre,"GROCERY STORES, SUPERMARKETS"
06/02/2020,Voids Programme,AMZNMktplace,103.60,.00,103.60,materials,MISCELLANEOUS AND SPECIALTY RETAIL STORES
07/02/2020,Housing Repair,DVLA VEHICLE TAX,145.50,.00,145.50,Road Fund Licence EX11 YLE,TAX PAYMENTS
07/02/2020,Housing Repair,DVLA VEHICLE TAX,145.50,.00,145.50,Road Fund Licence EX11 YLH,TAX PAYMENTS
07/02/2020,Housing Repair,DVLA VEHICLE TAX,145.50,.00,145.50,Road Fund Licence EX11 YKZ,TAX PAYMENTS
10/02/2020,,TESCO STORE 2574,10.00,2.00,12.00,Kettle Norman Court,"GROCERY STORES, SUPERMARKETS"
10/02/2020,Chairman,WWW.PARTYDELIGHTS.CO.U,72.62,14.50,87.12,Chairman's Civic Dinner,"GIFT, CARD, NOVELTY AND SOUVENIR SHOPS"
10/02/2020,Museum S/W,WAITROSE 135,11.78,.33,12.11,Tea / coffee / milk / biscuits for workshop with consultants 10 Feb and volunteers and activities,"GROCERY STORES, SUPERMARKETS"
10/02/2020,Procurement,thetrainline.com,46.60,.00,46.60,Train from Braintree to London Liverpool St to attend CIPFA Seminar,PASSENGER RAILWAYS
11/02/2020,Economic Development,STK Shutterstock,139.00,11.33,139.00,365 day images on demand with 25 standard license downloads,"COMMERCIAL ART, GRAPHICS, PHOTOGRAPHY"
11/02/2020,Human Resources,Amazon.co.uk LK6L80385,21.08,.00,21.08,ILM5 Training,DIRECT MARKETING-OTHER DIRECT MARKETERS/NOT ELSEW.
11/02/2020,Sheltered Housing,RIDGEONS SAFFRON WALDE,13.06,2.61,15.67,drill bits for key safe drilling,"BUILDING MATERIALS, LUMBER STORES"
11/02/2020,Thaxted Day Centre,TESCO STORE 2574,34.60,.00,34.60,Food provisions for meals at Thaxted Day Centre,"GROCERY STORES, SUPERMARKETS"
12/02/2020,,DVSA  LEARNER,37.00,.00,37.00,,GOVERNMENT SERVICES-NOT ELSEWHERE CLASSIFIED
12/02/2020,Chairman,WAITROSE DIRECT,36.95,.00,36.95,Aspire/CRP Donation to Chairman's Civic Dinner,"GROCERY STORES, SUPERMARKETS"
12/02/2020,Chairman,TESCO STORE 3108,2.30,.00,2.30,Civic Dinner Supplies,"GROCERY STORES, SUPERMARKETS"
12/02/2020,Development Control,THE BARN CORPORATION,215.15,.00,215.15,Lunch for members and officers during tour of completed developments within the district.,"LODGING-HOTELS,MOTELS,RESORTS-NOT CLASSIFIED"
13/02/2020,Environmental Improvements,ESSEX COUNTY COUNCI EC,284.63,.00,284.63,Application for vehicle crossing at 31 Station Road Wendons Ambo,GOVERNMENT SERVICES-NOT ELSEWHERE CLASSIFIED
13/02/2020,Public Health,WWW.PMGLTD.CO.UK,355.50,71.10,426.60,"1 place booked to attend 5th Annual Event ""Tackling Rogue Landlords Forum"" 14th May 2020 - LONDON @ cost of 355.50 + VAT",BUSINESS SERVICES-NOT ELSEWHERE CLASSIFIED
13/02/2020,Public Health,WWW.THEWATERFRONT.CO.U,249.00,49.80,298.80,"Booking for 1 Place for the 3rd Annual Air Quality Forum 2020 - 25th February 2020 @ cost of 249.00 + Vat
Ref: 12980",BUSINESS SERVICES-NOT ELSEWHERE CLASSIFIED
13/02/2020,Public Health (Commercial Team),CHARTERED INSTITUTE OF,290.00,.00,290.00,"Cost of 2 delegates to attend Cieh Food Safety and Standards Conference @145 each.
Ref CRMINV019010 JD & JA","ORGANIZATIONS, CHARITABLE AND SOCIAL SERVICES"
13/02/2020,Saffron Walden Offices,RICS COM GBP CYBS,220.00,44.00,264.00,Continuation of Professional Development - Royal Institution of Chartered Surveyors (RICS) Training Course,"ORGANIZATIONS, MEMBERSHIP-NOT ELSEWHERE CLASSIFIED"
13/02/2020,Street Cleansing,HOLTS ABATTOIR LTD,315.00,63.00,378.00,COLLECTION AND DISPOSAL OF DUMPED PONY,"MISC FOOD STORE-CONVENIENCE,MRKT,SPLTY,VENDNG MACS"
14/02/2020,Chairman,WAITROSE 135,11.50,2.30,13.80,Civic Dinner Supplies,"GROCERY STORES, SUPERMARKETS"
14/02/2020,Chairman,WAITROSE 135,16.63,3.33,19.96,Civic Dinner Supplies,"GROCERY STORES, SUPERMARKETS"
14/02/2020,Museum S/W,AMZNMktplace,11.23,2.25,13.48,Red plastic discs for labelling Fire Exhibition displays (Apr-Jul 2020 exhibition),MISCELLANEOUS AND SPECIALTY RETAIL STORES
14/02/2020,Office Services,NUKEY,19.20,3.84,23.04,Keys for desk drawers,DIRECT MARKETING-CATALOG MERCHANTS
14/02/2020,Public Health,AMZNMKTPLACE AMAZON.CO,116.64,23.34,139.98,Supply of 2 x SuperBatt 12v 85AH CB22MF Leisure Battery Caravan Motor home Marine @ cost of 58.00 + VAT Ref: ENF-GR,MISCELLANEOUS AND SPECIALTY RETAIL STORES
14/02/2020,Public Health (Commercial Team),CHARTERED INSTITUTE OF,290.00,.00,290.00,Cost of 2 delegates to attend CIEH Safe Food Conference @145 each. REF CRMINV019028 JD & JA,"ORGANIZATIONS, CHARITABLE AND SOCIAL SERVICES"
14/02/2020,Revenues Admin,SOUTHEND COUNTY,119.00,.00,119.00,Revenue Court Fee,FINES
16/02/2020,Development Control,TESCO SUBSCRIPTION,6.99,.00,6.99,Monthly fee so that there is unlimited delivery option for the authority.,DIRECT MARKETING-CONTINUITY/SUBSCRIPTION MERCHANTS
17/02/2020,Development Control,UNIVERSITY OF BRIGHTON,177.00,.00,177.00,Planning Officer tour for university course.,"COLLEGES, UNIV, PRO SCHOOLS, JUNIOR COLLEGES"
17/02/2020,Land Charges,Cross Country Trains,66.20,.00,66.20,Train to LLCI training and Development,PASSENGER RAILWAYS
18/02/2020,Housing Repair,BRITISH GAS ONLINE,20.00,.00,20.00,"Top up 20 for pre-pay meter 22 upper mill field, Dunmow, CM6 1ER","UTLTS-ELCTRC, GAS, HEATING OIL, SANITARY, WATER"
19/02/2020,,BOOKPOINT LIMITED,45.47,.00,45.47,,"BOOKS,PERIODICALS AND NEWSPAPERS"
19/02/2020,Democratic Representation,TESCO STORE 3108,69.00,.00,69.00,Planning Committee lunch for Wed 19 02 2020,"GROCERY STORES, SUPERMARKETS"
19/02/2020,Planning Policy,WWW.THEWATERFRONT.CO.U,199.00,39.80,238.80,Attendance of officer at 3rd Annual: UK Airport Infrastructure Development Forum 2020 - 09/07/2020,BUSINESS SERVICES-NOT ELSEWHERE CLASSIFIED
20/02/2020,Chief Executive,TESCO STORES 6812,5.80,.00,5.80,EELGA Lunch,"GROCERY STORES, SUPERMARKETS"
21/02/2020,Museum S/W,GREATER ANGLIA T/O,17.35,.00,17.35,"Train: one-day off-peak travel card (incl tube) for London, senior railcard discount. Appointment at British Museum to collect one treasure acquisition and view another prospective acquisition (required by grant-aiding organisations).
VAT zero rated",PASSENGER RAILWAYS
21/02/2020,Museum S/W,GA AUDLEY STORTFORD ST,5.83,1.17,7.00,Car parking at Audley End station for travel to London (appointment at British Museum),AUTOMOBILE PARKING LOTS AND GARAGES
21/02/2020,Thaxted Day Centre,GUILDHALL STORES,4.71,.00,4.71,Food provision for Thaxted Day Centre,"MISC FOOD STORE-CONVENIENCE,MRKT,SPLTY,VENDNG MACS"
23/02/2020,Saffron Walden Day Centre,ALDI 76 776,76.92,.42,77.34,Food provisions for Saffron Walden Day Centre,"GROCERY STORES, SUPERMARKETS"
24/02/2020,Building Surveying,RAILCARD.CO.UK,30.00,.00,30.00,Rail card to get a better rate for the journeys need to be undertaken to get officer to apprenticeship training.,PASSENGER RAILWAYS
24/02/2020,Museum S/W,AMZNMktplace,22.89,.00,22.89,Wall stickers for All Fired Up exhibition,MISCELLANEOUS AND SPECIALTY RETAIL STORES
24/02/2020,Museum S/W,AMZNMKTPLACE AMAZON.CO,10.68,2.14,12.82,Red storage box for All Fired Up exhibition interactives,MISCELLANEOUS AND SPECIALTY RETAIL STORES
24/02/2020,Museum S/W,Amazon.co.uk FK0WF3975,11.23,2.25,13.48,Box for interactives for All Fired Up exhibition,DIRECT MARKETING-OTHER DIRECT MARKETERS/NOT ELSEW.
24/02/2020,Museum S/W,MUSEUMS ASCTN,91.24,2.76,94.00,Renewal on-line of personal professional subscription to Museums Association for 2020/21,ART DEALERS AND GALLERIES
24/02/2020,Office Services,GODDARDS ELECTRICAL,14.16,2.83,16.99,HDMI cable for room opposite CSC,HOUSEHOLD APPLIANCE STORES
24/02/2020,Planning Policy,thetrainline.com,49.76,.00,49.76,Travel for a member of staff to a meeting at MHCLG 25/02/2020,PASSENGER RAILWAYS
24/02/2020,Thaxted Day Centre,HP INC UK LIMITED,2.91,.58,3.49,Ink printer for Thaxted Day Centre,"COMPUTERS, COMPUTER PERIPHERAL EQUIPMENT, SOFTWARE"
25/02/2020,,EB  COMMUNITY ENERGY S,43.71,.00,43.71,,BUSINESS SERVICES-NOT ELSEWHERE CLASSIFIED
25/02/2020,,ARTHOUSE DIRECT,"2,104.27",.00,"2,104.27",,"ARTIST SUPPLY STORES, CRAFT SHOPS"
25/02/2020,,RIDGEONS SAFFRON WALDE,39.19,.00,39.19,,"BUILDING MATERIALS, LUMBER STORES"
25/02/2020,Housing Repair,BRITISH GAS ONLINE,20.00,.00,20.00,"top up of pre-pay meter on void, done on line","UTLTS-ELCTRC, GAS, HEATING OIL, SANITARY, WATER"
25/02/2020,Museum S/W,WH SMITH,4.99,.99,5.98,2 rolls double-sided tape for display work,NEWS DEALERS AND NEWSSTANDS
25/02/2020,Procurement,Trainline,46.60,.00,46.60,Train from Braintree to London Liverpool St to attend CIPFA Seminar,PASSENGER RAILWAYS
25/02/2020,Refuse & Recycling,KENT BLAXILL & CO,66.55,13.31,79.86,compensation purchase to cover the cost of Decorators tools mistakenly taken during collections. 1 x 3in brush @ 24.91 1 x 2in brush @ 16.95 1 magnetic paint clip @ 3.52 mini sleeve med x 2 @ 5.25 per 1 x jumbo roller frame @ 6.64 1 x paint scuttle @ 4.03,"BUILDING MATERIALS, LUMBER STORES"
26/02/2020,Museum S/W,WWW.SECOL.CO.UK,35.45,7.09,42.54,Secol pockets pack of 50 - conservation materials for All Fired Up exhibition,"OFFICE, SCHOOL SUPPLY, AND STATIONERY STORES"
26/02/2020,Museum S/W,AMZNMktplace,15.97,.00,15.97,whiteboard markers for All Fired Up exhibition,MISCELLANEOUS AND SPECIALTY RETAIL STORES
26/02/2020,Public Health (Commercial Team),Trainline,63.08,.00,63.08,"Cost of return train journey to attend college in Coventry for Food Control training course.
@58.50  Trainline Protect @ 2.00  Booking fee @ 1.50  C/C fee @1.08 Transaction ID 442117601054 Ref TN",PASSENGER RAILWAYS
26/02/2020,Sheltered Housing,BATTERY STATION,13.31,2.66,15.97,batteries for sheltered sites and falls detectors,HOUSEHOLD APPLIANCE STORES
27/02/2020,,WWW.SAFETYFIRSTAID.CO.,356.40,.00,356.40,,INDUSTRIAL SUPPLIES NOT ELSEWHERE CLASSIFIED
27/02/2020,Refuse & Recycling,WWW.TCFIXINGS.CO.UK,61.85,12.37,74.22,1 x padlock purchase for main gate at Shire Hill. Old padlock unsuitable for further use,"BUILDING MATERIALS, LUMBER STORES"
28/02/2020,,TIMPSON LTD,12.75,.00,12.75,,MISCELLANEOUS AND SPECIALTY RETAIL STORES
02/03/2020,Housing Repair,BRITISH GAS ONLINE,20.00,.00,20.00,Pre-payment meter top up on void,"UTLTS-ELCTRC, GAS, HEATING OIL, SANITARY, WATER"
02/03/2020,Sheltered Housing,WICKES BUILDING,60.00,12.00,72.00,Gravel bag- Norman ct garden,"BUILDING MATERIALS, LUMBER STORES"
02/03/2020,Sheltered Housing,B AND M RETAIL,118.98,23.80,142.78,sundries for scheme improvements,DISCOUNT STORES
02/03/2020,Thaxted Day Centre,TESCO STORE 2574,25.88,.00,25.88,Food provision for Thaxted Day Centre,"GROCERY STORES, SUPERMARKETS"
03/03/2020,Housing Repair,BRITISH GAS ONLINE,20.00,.00,20.00,Pre-pay meter top up on void,"UTLTS-ELCTRC, GAS, HEATING OIL, SANITARY, WATER"
03/03/2020,Sheltered Housing,SCREWFIX DIRECT,141.65,28.33,169.98,raised planters for garden improvement Norman Court,HOME SUPPLY WAREHOUSE STORES
04/03/2020,Museum S/W,AMZNMktplace,29.16,5.83,34.99,paint pens for All Fired Up exhibition,MISCELLANEOUS AND SPECIALTY RETAIL STORES
04/03/2020,Sheltered Housing,LORD BUTLER FITNES,6.00,.00,6.00,refreshments for training course,"CLUBS-CNTRY,MBRSHIP(ATHLET,REC,SPRTS,PRIVATE GOLF"
04/03/2020,Sheltered Housing,B AND M RETAIL,22.48,4.49,26.97,"canvases for guest room, air fresheners, velcro",DISCOUNT STORES
05/03/2020,Museum S/W,MEDLOCK ELECTRICAL,12.00,2.40,14.40,Light bulbs for Museum galleries.,ELECTRICAL PARTS AND EQUIPMENT
05/03/2020,Vehicle Maintenance,RIDGEONS SAFFRON WALDE,31.75,.00,31.75,"Various Items for Vehicle Wash down. 3 x brooms 1 x 12"" 1 x 18"" 1 x 24"".
1 x hand brush","BUILDING MATERIALS, LUMBER STORES"
05/03/2020,Vehicle Maintenance,TESCO STORE 3130,20.20,.00,20.20,"12 x pack cleansing cloths @ 0.35 per
10 x cleansing spray @ 0.80 per
10 x glass cleaner @ 0.80 per","GROCERY STORES, SUPERMARKETS"
06/03/2020,,DVLA VEHICLE TAX,"1,330.50",.00,"1,330.50",,TAX PAYMENTS
06/03/2020,,WWW.PAYNOTICE.CO.UK,35.00,.00,35.00,,AUTOMOBILE PARKING LOTS AND GARAGES
06/03/2020,Museum S/W,TESCO STORE 3108,13.09,.00,13.09,"Milk, biscuits and coffee for catering at museum events egg Art Club, Toddler STEAM, Museum Minis, and one off events.","GROCERY STORES, SUPERMARKETS"
08/03/2020,Saffron Walden Day Centre,ALDI 76 776,85.01,.98,85.99,Food provisions for Saffron Walden Day Centre,"GROCERY STORES, SUPERMARKETS"
09/03/2020,,SP   BATH PUBLISHING L,33.50,.00,33.50,,COMPUTER SOFTWARE STORES
09/03/2020,,DVLA VEHICLE TAX,"1,330.50",.00,"1,330.50",,TAX PAYMENTS
09/03/2020,,RIDGEONS SAFFRON WALDE,91.34,.00,91.34,,"BUILDING MATERIALS, LUMBER STORES"
09/03/2020,Museum S/W,TESCO STORE 3108,18.76,.00,18.76,Materials (food) for a session on rationing in WW2. Food bought will last for a long time and will not need to be replaced for several years. packing has been altered to reflect WW2 style.,"GROCERY STORES, SUPERMARKETS"
09/03/2020,Thaxted Day Centre,TESCO STORE 2574,41.76,.00,41.76,Food provision for Thaxted Day Centre,"GROCERY STORES, SUPERMARKETS"
10/03/2020,Democratic Rep,TESCO STORE 3108,40.97,.00,40.97,Catering for Scrutiny for those who attended earlier meetings,"GROCERY STORES, SUPERMARKETS"
10/03/2020,Democratic Rep,TESCO STORES 6812,5.25,.00,5.25,Scrutiny Meeting,"GROCERY STORES, SUPERMARKETS"
10/03/2020,Museum S/W,HUNTOFFICE.CO.UK,19.85,2.80,22.65,red storage boxes themed for All Fired Up exhibition at Museum,MISCELLANEOUS GENERAL MERCHANDISE
10/03/2020,Museum S/W,AMZNMKTPLACE AMAZON.CO,()12.82,.00,()12.82,Reimbursement for goods not received. see previous transaction for 12.82.,MISCELLANEOUS AND SPECIALTY RETAIL STORES
10/03/2020,Museum S/W,Amazon.co.uk AO7BU3CA5,9.16,1.83,10.99,Replica meat and fish for rationing in WW2,DIRECT MARKETING-OTHER DIRECT MARKETERS/NOT ELSEW.
11/03/2020,Border Inspection,WWW.TEALWASH.COM,325.20,.00,325.20,Cost of Teal unit for washing hands when inspecting.@271.00 Inv 88389  Ref JA,"HEATING, PLUMBING, AIR CONDITIONING CONTRACTORS"
11/03/2020,Border Inspection,WWW.TEALWASH.COM,325.20,.00,325.20,Charged in error-to be credited.,"HEATING, PLUMBING, AIR CONDITIONING CONTRACTORS"
11/03/2020,Museum S/W,AMZNMKTPLACE AMAZON.CO,6.63,1.34,7.97,replica bacon for WW2 rationing session,MISCELLANEOUS AND SPECIALTY RETAIL STORES
11/03/2020,Museum S/W,AMZNMktplace,11.97,.00,11.97,glass milk bottles for ww2 rationing sessions,MISCELLANEOUS AND SPECIALTY RETAIL STORES
11/03/2020,Museum S/W,Amazon.co.uk UE3II32X5,2.49,.50,2.99,Charcoal for arts and crafts activities,DIRECT MARKETING-OTHER DIRECT MARKETERS/NOT ELSEW.
11/03/2020,Museum S/W,Amazon.co.uk VJ9R03415,5.41,1.08,6.49,Sugar paper for crafts and schools sessions,DIRECT MARKETING-OTHER DIRECT MARKETERS/NOT ELSEW.
11/03/2020,Museum S/W,Amazon.co.uk EH7206QU5,7.07,1.41,8.48,Replica bacon for WW2 rationing session,DIRECT MARKETING-OTHER DIRECT MARKETERS/NOT ELSEW.
11/03/2020,Revenues Admin,SOUTHEND COUNTY,122.00,.00,122.00,Revenue Court Fee,FINES
12/03/2020,,HOLTS ABATTOIR LTD,384.00,.00,384.00,,"MISC FOOD STORE-CONVENIENCE,MRKT,SPLTY,VENDNG MACS"
12/03/2020,Museum S/W,AMZNMktplace,16.98,.00,16.98,,MISCELLANEOUS AND SPECIALTY RETAIL STORES
12/03/2020,Thaxted Day Centre,TESCO STORE 2574,4.20,.00,4.20,Food provision for Thaxted Day Centre,"GROCERY STORES, SUPERMARKETS"
13/03/2020,,WWW.MOVEITORLOSEIT.CO.,495.00,.00,495.00,,MISCELLANEOUS AND SPECIALTY RETAIL STORES
13/03/2020,,B AND M RETAIL,23.92,.00,23.92,,DISCOUNT STORES
13/03/2020,Chief Executive,TESCO STORE 3108,()1.10,.00,()1.10,Refund of milk as bottle smashed,"GROCERY STORES, SUPERMARKETS"
13/03/2020,Chief Executive,TESCO STORE 3108,49.43,.00,49.43,CVSU  - Order placed using Clubcard vouchers but as some tems were out of stock the value of the order fell below the 50 threshold,"GROCERY STORES, SUPERMARKETS"
13/03/2020,Museum S/W,PHILLIMORE GARDEN,7.99,.00,7.99,stones for pebble painting craft session early March,LAWN AND GARDEN SUPPLY STORES
16/03/2020,,TESCO SUBSCRIPTION,6.99,.00,6.99,,DIRECT MARKETING-CONTINUITY/SUBSCRIPTION MERCHANTS
17/03/2020,Border Inspection,WWW.TEALWASH.COM,()325.20,.00,()325.20,Charged in error-credit,"HEATING, PLUMBING, AIR CONDITIONING CONTRACTORS"
17/03/2020,Housing Repair,BRITISH GAS ONLINE,15.00,.00,15.00,Pre-pay meter top up on void,"UTLTS-ELCTRC, GAS, HEATING OIL, SANITARY, WATER"
18/03/2020,,WWW.MONEYCLAIM.GOV,77.00,.00,77.00,,GOVERNMENT SERVICES-NOT ELSEWHERE CLASSIFIED
19/03/2020,,BRITISH GAS ONLINE,30.00,.00,30.00,,"UTLTS-ELCTRC, GAS, HEATING OIL, SANITARY, WATER"
19/03/2020,,UNIVERSITY OF BRIGHTON,()177.00,.00,()177.00,,"COLLEGES, UNIV, PRO SCHOOLS, JUNIOR COLLEGES"
19/03/2020,,UNIVERSITY OF BRIGHTON,()100.00,.00,()100.00,,"COLLEGES, UNIV, PRO SCHOOLS, JUNIOR COLLEGES"
24/03/2020,,WWW.ACCOUNTS@IIA.ORG.U,263.00,.00,263.00,,"ACCOUNTING, AUDITING AND BOOKKEEPING SERVICES"
25/03/2020,,WWW.ACCOUNTS@IIA.ORG.U,250.00,.00,250.00,,"ACCOUNTING, AUDITING AND BOOKKEEPING SERVICES"
25/03/2020,,HP INC UK LIMITED,3.49,.00,3.49,,"COMPUTERS, COMPUTER PERIPHERAL EQUIPMENT, SOFTWARE"
26/03/2020,,ZOOM.GBP,239.80,47.96,287.76,,DIRECT MARKETING-CONTINUITY/SUBSCRIPTION MERCHANTS
27/03/2020,,BRITISH GAS ONLINE,10.00,.00,10.00,,"UTLTS-ELCTRC, GAS, HEATING OIL, SANITARY, WATER"
27/03/2020,Museum S/W,WWW.CREATIVEGLASSGUILD,19.29,.00,19.29,,"CONTRACTORS,SPECIAL TRADE-NOT ELSEWHERE CLASSIFIED"
30/03/2020,,WWW.ACCOUNTS@IIA.ORG.U,200.00,.00,200.00,,"ACCOUNTING, AUDITING AND BOOKKEEPING SERVICES"
